Cogmind - Beta 9.6 @@@ ROGUE MODE // 2020.07.31 @ 23:41:06 // Winter2019/RPGLIKE Player: Hermelin Result: Destroyed by H-88 Terminator with KE Penetrator Performance ------------- Evolutions (8) 4000 Regions Visited (34) 6800 Robots Destroyed (547) 2735 Value Destroyed (29434) 29434 Prototype IDs (136) 2720 Alien Tech Used (10) 2000 Bonus (17435) 17435 TOTAL SCORE: 65124 Bonus ------- High Alert Combat Kills 4731 Follower Combat Kills 1816 Entered Garrisons 1800 Used RIF Installer 4500 Network Hubs Disabled 600 Aligned with FarCom 300 Met R17 at Cetus 500 Found Hidden Lab 3000 Scanned by Researcher 500 Pursued by Intercept 500 Friendly Fire -812 Cogmind --------- Core Integrity 0/1700 Matter 80/350 Energy 29/700 System Corruption 0% Temperature Cool (0) Movement Flying (50) Location -2/Section 7 Parts ------- > --- POWER (2) -------- Vortex Chain Reactor > --- PROPULSION (4) --- Flying Fortress v7 > --- UTILITY (14) ----- Experimental Signal Interpreter Experimental Melee Analysis Suite Advanced Target Analyzer Advanced Armor Integrity Analyzer Advanced Reaction Control System Experimental Powered Armor EM Dispersion Field Experimental Force Field Advanced Hacking Suite Quantum Router Relay Coupler [NC] (61) Relay Coupler [C] (67) Relay Coupler [Sentry] (39) Relay Coupler [Hunter] (36) > --- WEAPON (5) ------- 8R-AWN's Boregun Core Stripper Sigix Broadsword > --- INVENTORY (6) ---- Protomatter-81 Advanced Terrain Scanner Subatomic Replicator Core Cannon Guided Remote Datajack Peak State ------------ > --- POWER ------------ Vortex Chain Reactor > --- PROPULSION ------- Flying Fortress v7 > --- UTILITY ---------- Experimental Signal Interpreter Experimental Melee Analysis Suite Advanced Target Analyzer Advanced Armor Integrity Analyzer Advanced Reaction Control System Experimental Powered Armor EM Dispersion Field Experimental Force Field Advanced Hacking Suite Quantum Router Relay Coupler [NC] Relay Coupler [C] Relay Coupler [Sentry] Relay Coupler [Hunter] > --- WEAPON ----------- 8R-AWN's Boregun Core Stripper Sigix Broadsword > --- INVENTORY -------- System Purifier Subatomic Replicator Stasis Generator Core Cannon Guided Remote Datajack [Rating: 225] Favorites ----------- Power Cooled Ion Engine Engine Cooled Ion Engine Power Core Light Nuclear Core Reactor Quantum Reactor Propulsion Flying Fortress v7 Treads Armored Treads Leg Advanced Myomer Leg Wheel Compact Wheel Hover Unit Hover Unit Flight Unit Flying Fortress v7 Utility Advanced Terrain Scanner Device Advanced Terrain Scanner Storage Advanced Matter Compressor Processor Improved Armor Integrity Analyzer Hackware Advanced Hacking Suite Protection Powered Armor Weapon 8R-AWN's Boregun Energy Gun Advanced Variable Charge Gun Energy Cannon Heavy Ion Cannon Ballistic Gun 8R-AWN's Boregun Ballistic Cannon AWS/Autocannon Launcher Rocket Launcher Special Weapon Guided Remote Datajack Impact Weapon Core Stripper Slashing Weapon Phasing Sabre Piercing Weapon Plasma Lance Build | -11 -10 -10 -9 -9 -9 -8 -8 -8 -8 -8 -7 -7 -7 -7 -6 -6 -6 -6 -6 -6 -5 -5 -4 -4 -4 -4 -3 -3 -3 -2 -2 -2 -2 -2 ------- Run | Scr Mat Min Mat Min Exi Min Mat Gar Mat Gar Fac Gar Fac Gar Fac Ext Cet Arc Hub Gar Fac Gar Fac Gar Fac Gar Res Arm Lab Res Gar Res Qua Sec Slots Evolved 21 | 3 1 . 4 . 2 . 3 . 1 . 1 . . . . 1 1 . . . . . . 1 . 1 1 . . . 1 . . . Power 1 | . . . . . 1 . . . . . . . . . . . . . . . . . . . . . . . . . . . . . Propulsion 3 | 1 . . 1 . 1 . . . . . . . . . . . . . . . . . . . . . . . . . . . . . Utility 13 | 1 1 . 2 . . . 3 . 1 . 1 . . . . 1 . . . . . . . 1 . 1 . . . . 1 . . . Weapon 4 | 1 . . 1 . . . . . . . . . . . . . 1 . . . . . . . . . 1 . . . . . . . Parts Attached 242 | 7 7 . 16 2 18 2 14 2 8 . 9 . 1 . 2 4 7 . 1 2 5 1 12 5 1 4 6 9 6 14 8 20 31 18 Power 18 | 1 1 . 3 . 2 . 2 . . . . . . . 2 . 1 . . . . . . . . . . . . . 1 2 1 2 Engine 10 | 1 1 . 2 . 2 . 2 . . . . . . . 2 . . . . . . . . . . . . . . . . . . . Core 1 | . . . 1 . . . . . . . . . . . . . . . . . . . . . . . . . . . . . . . Reactor 7 | . . . . . . . . . . . . . . . . . 1 . . . . . . . . . . . . . 1 2 1 2 Propulsion 17 | 2 2 . 4 . 4 . . . . . . . . . . . . . . 2 . . . . . . . . . . . . 3 . Treads 3 | . . . 1 . 2 . . . . . . . . . . . . . . . . . . . . . . . . . . . . . Leg 2 | . . . . . 1 . . . . . . . . . . . . . . 1 . . . . . . . . . . . . . . Wheel 2 | 2 . . . . . . . . . . . . . . . . . . . . . . . . . . . . . . . . . . Hover 5 | . 2 . 3 . . . . . . . . . . . . . . . . . . . . . . . . . . . . . . . Flight 5 | . . . . . 1 . . . . . . . . . . . . . . 1 . . . . . . . . . . . . 3 . Utility 136 | 2 2 . 6 . 8 2 9 2 5 . 3 . . . . 1 1 . 1 . 5 . 8 5 1 2 4 9 3 13 6 11 14 13 Device 82 | 1 1 . 1 . 3 1 6 1 3 . 2 . . . . . . . . . 2 . 5 1 . 1 2 5 1 12 4 7 13 10 Storage 1 | . . . . . . . . . . . . . . . . . . . . . . . . . . . . . . . . 1 . . Processor 17 | 1 . . 4 . 4 . 1 . . . . . . . . . . . . . 1 . . 1 . . 2 1 . . . 1 . 1 Hackware 10 | . 1 . . . . . . . . . . . . . . . . . 1 . . . . 1 1 . . 1 1 1 2 1 . . Protection 26 | . . . 1 . 1 1 2 1 2 . 1 . . . . 1 1 . . . 2 . 3 2 . 1 . 2 1 . . 1 1 2 Artifact . | . . . . . . . . . . . . . . . . . . . . . . . . . . . . . . . . . . . Weapon 71 | 2 2 . 3 2 4 . 3 . 3 . 6 . 1 . . 3 5 . . . . 1 4 . . 2 2 . 3 1 1 7 13 3 Energy Gun 7 | 1 . . 1 . . . . . 1 . 1 . . . . . 1 . . . . 1 . . . . . . 1 . . . . . Energy Cannon 10 | . . . . . . . 2 . 2 . 1 . 1 . . . . . . . . . 2 . . . . . . . . . 1 1 Ballistic Gun 22 | 1 2 . 2 1 2 . 1 . . . 2 . . . . . 1 . . . . . 1 . . 1 . . . . 1 2 4 1 Ballistic Cannon 6 | . . . . . 1 . . . . . . . . . . 1 . . . . . . . . . . . . . . . 1 3 . Launcher 2 | . . . . 1 1 . . . . . . . . . . . . . . . . . . . . . . . . . . . . . Special Weapon 5 | . . . . . . . . . . . . . . . . . . . . . . . . . . . 1 . 1 . . 1 1 1 Impact Weapon 3 | . . . . . . . . . . . . . . . . . . . . . . . . . . . . . . . . 1 2 . Slashing Weapon 13 | . . . . . . . . . . . 1 . . . . 2 3 . . . . . 1 . . . 1 . 1 1 . 1 2 . Piercing Weapon 3 | . . . . . . . . . . . 1 . . . . . . . . . . . . . . 1 . . . . . 1 . . Special Melee Weapon . | . . . . . . . . . . . . . . . . . . . . . . . . . . . . . . . . . . . Unidentified Prototypes 62 | . . . 3 . 6 . . . 1 . 2 . 1 . . . 3 . . . . . 1 . . 1 1 . 7 4 1 6 16 9 Parts Lost 6 | . . . . . 1 . . . . . . . . . . . . . . . . 1 . . . 2 . 1 . 1 . . . . Power 1 | . . . . . . . . . . . . . . . . . . . . . . . . . . . . . . 1 . . . . Propulsion . | . . . . . . . . . . . . . . . . . . . . . . . . . . . . . . . . . . . Utility 4 | . . . . . 1 . . . . . . . . . . . . . . . . . . . . 2 . 1 . . . . . . Weapon 1 | . . . . . . . . . . . . . . . . . . . . . . 1 . . . . . . . . . . . . Highest Loss Streak 2 | . . . . . 1 . . . . . . . . . . . . . . . . 1 . . . 2 . 1 . 1 . . . . Average Slot Usage (%) 84 | . 100 100 99 100 94 64 71 82 82 83 83 84 83 84 83 83 84 85 85 84 84 84 85 85 86 84 80 82 81 80 82 83 79 75 Engine 5 | . 13 12 4 8 9 14 11 11 11 11 10 10 10 10 9 10 4 4 4 4 4 4 4 4 4 4 4 4 4 1 . . . . Reactor 2 | . . . . . . . . . . . . . . . . . 3 4 4 4 4 4 4 4 4 4 4 4 4 4 7 7 7 4 Treads 1 | . . . . 8 21 . . . . . . . . . . . . . . . . . . . . . . . . . . . . . Hover 2 | . 15 25 22 16 . . . . . . . . . . . . . . . . . . . . . . . . . . . . . . Flight 3 | . . . . . . 7 5 5 5 5 5 5 5 5 5 5 4 4 4 3 4 4 4 4 4 4 4 4 4 4 4 4 4 4 Device 15 | . 27 25 11 8 5 3 14 17 18 16 21 21 21 21 21 20 19 19 19 19 19 19 21 18 13 15 16 16 12 11 12 11 11 11 Processor 19 | . . . 16 25 27 28 24 23 22 22 21 21 21 21 21 20 19 19 19 19 19 19 19 19 21 17 16 16 16 16 16 16 16 16 Hackware 8 | . 2 12 7 . . . . . . . . . . . . . . . 3 4 4 4 4 7 9 13 12 15 18 20 20 24 24 24 Protection 6 | . . . 4 8 4 3 2 5 7 11 8 10 10 10 10 11 14 14 9 9 8 9 6 7 9 6 4 2 4 4 4 3 4 4 Energy Cannon 2 | . . . . . . . 4 11 11 11 7 5 4 5 5 5 . . . . . . 3 4 4 1 . . . . . . . . Ballistic Gun 6 | . 26 25 25 23 21 . 2 5 5 5 6 5 5 5 5 5 4 4 4 4 4 4 4 4 4 3 2 . . . 1 3 3 . Slashing Weapon 4 | . . . . . . . . . . . . 5 5 5 5 4 8 9 9 9 9 9 9 9 9 8 8 8 8 8 8 8 6 4 Naked Turns . | . . . . . . . . . . . . . . . . . . . . . . . . . . . . . . . . . . . Heaviest Build 87 | 10 13 11 21 22 80 82 82 52 61 61 61 59 62 62 62 70 83 80 80 73 73 73 79 82 81 78 69 75 77 75 82 84 87 87 Greatest Support 87 | 37 37 17 27 25 77 82 82 82 82 82 82 82 82 82 82 82 82 82 82 82 82 82 82 82 82 82 82 82 82 82 82 82 87 87 Greatest Overweight (x) 6 | . . . . . 1 1 . . . . . . . . . 5 1 . . 5 . . . . . . . . . . . 1 6 . Average Overweight (x) . | . . . . . . . . . . . . . . . . . . . . . . . . . . . . . . . . . . . Largest Inventory Capacity 6 | 2 2 2 4 4 4 4 4 4 4 4 4 4 4 4 4 4 4 4 5 5 5 5 5 5 5 5 5 5 6 6 6 6 6 6 Average Capacity 4 | 1 2 2 2 4 4 4 4 4 4 4 4 4 4 4 4 4 4 4 4 5 5 5 5 5 5 5 5 5 5 6 6 6 6 6 Most Carried 6 | 1 2 2 4 4 4 4 4 4 4 4 4 4 4 4 4 4 4 4 5 5 4 5 5 5 5 5 5 5 6 6 6 6 6 6 Average Carried 4 | . 1 1 2 4 3 4 3 3 3 4 3 4 3 4 4 3 3 4 4 4 3 4 4 4 4 4 5 4 5 4 5 5 5 5 Final Capacity 6 | 2 2 2 4 4 4 4 4 4 4 4 4 4 4 4 4 4 4 4 5 5 5 5 5 5 5 5 5 5 6 6 6 6 6 6 Final Carried 6 | 1 2 2 4 4 4 4 4 4 4 4 4 4 4 4 4 4 4 4 5 3 4 5 5 5 5 5 5 5 6 4 6 6 6 6 Class Distribution -------------------- 26% | Scavenger-Scout 21% | Scavenger-Mutant 16% | Botlord-Scout 8% | Hacker-Scout 5% | Bothacker-Scout 5% | Gunner 3% | Hacker-Gunner 3% | Mutant 3% | Scavenger-Gunner Dominant Class ---------------- Mutant | -10/Materials Hacker-Mutant | -10/Mines Hacker-Gunner | -9/Materials Gunner | -9/Mines Gunner | -9/Exiles Scavenger-Mutant | -8/Mines Scavenger-Scout | -8/Materials Scavenger-Mutant | -8/Garrison Scavenger-Mutant | -8/Materials Scavenger-Mutant | -8/Garrison Scavenger-Mutant | -7/Factory Scavenger-Mutant | -7/Garrison Scavenger-Mutant | -7/Factory Scavenger-Mutant | -7/Garrison Scavenger-Mutant | -6/Factory Scavenger-Scout | -6/Extension Scavenger-Scout | -6/Cetus Scavenger-Scout | -6/Archives Scavenger-Scout | -6/Hub_04(d) Scavenger-Scout | -6/Garrison Scavenger-Scout | -5/Factory Scavenger-Scout | -5/Garrison Scavenger-Scout | -4/Factory Scavenger-Scout | -4/Garrison Scavenger-Scout | -4/Factory Scavenger-Scout | -4/Garrison Bothacker-Scout | -3/Research Bothacker-Scout | -3/Armory Hacker-Scout | -3/Lab Hacker-Scout | -2/Research Hacker-Scout | -2/Garrison Botlord-Scout | -2/Research Botlord-Scout | -2/Quarantine Botlord-Scout | -2/Section 7 Resources | -11 -10 -10 -9 -9 -9 -8 -8 -8 -8 -8 -7 -7 -7 -7 -6 -6 -6 -6 -6 -6 -5 -5 -4 -4 -4 -4 -3 -3 -3 -2 -2 -2 -2 -2 ----------- Run | Scr Mat Min Mat Min Exi Min Mat Gar Mat Gar Fac Gar Fac Gar Fac Ext Cet Arc Hub Gar Fac Gar Fac Gar Fac Gar Res Arm Lab Res Gar Res Qua Sec Matter Collected 10004 | 276 454 . 1734 111 692 20 554 628 560 270 324 246 70 . 158 454 508 . 10 20 15 519 106 94 . 314 66 152 . 345 168 404 512 220 Remotely 1007 | . 454 . 553 . . . . . . . . . . . . . . . . . . . . . . . . . . . . . . . Salvage Created 25649 | 48 485 . 1837 27 383 166 1820 1051 1526 1124 891 937 393 . 266 1054 1573 244 771 247 15 657 452 525 287 2166 459 439 . 978 454 1890 735 1749 Parts 1455 | 8 36 . 123 8 66 6 123 83 79 60 32 43 31 . 22 62 74 16 39 14 7 47 18 29 16 51 18 26 . 67 37 96 65 53 Haulers Intercepted 25 | . 2 . 6 . . . 3 . 4 . 1 . 1 . . 1 . . . . . . 1 . 1 . . . . 2 . 3 . . Recyclers Shooed 4 | . . . 4 . . . . . . . . . . . . . . . . . . . . . . . . . . . . . . . Parts Field Recycled . | . . . . . . . . . . . . . . . . . . . . . . . . . . . . . . . . . . . Retrieved Matter . | . . . . . . . . . . . . . . . . . . . . . . . . . . . . . . . . . . . Parts Self-Destructed . | . . . . . . . . . . . . . . . . . . . . . . . . . . . . . . . . . . . Prevented . | . . . . . . . . . . . . . . . . . . . . . . . . . . . . . . . . . . . Kills | -11 -10 -10 -9 -9 -9 -8 -8 -8 -8 -8 -7 -7 -7 -7 -6 -6 -6 -6 -6 -6 -5 -5 -4 -4 -4 -4 -3 -3 -3 -2 -2 -2 -2 -2 ------- Run | Scr Mat Min Mat Min Exi Min Mat Gar Mat Gar Fac Gar Fac Gar Fac Ext Cet Arc Hub Gar Fac Gar Fac Gar Fac Gar Res Arm Lab Res Gar Res Qua Sec Combat Hostiles Destroyed 434 | . 12 . 32 7 4 6 45 23 21 22 13 19 7 . 4 19 25 4 11 6 1 18 5 5 4 26 5 6 . 14 14 22 11 23 Melee 115 | . . . . . . . . . . . . . . . . 2 8 4 9 6 . . 5 3 4 5 5 6 . 14 12 11 8 13 Guns 231 | . 12 . 32 4 2 . 20 21 17 9 7 9 7 . 4 12 15 . . . 1 18 . 1 . 21 . . . . 2 11 2 4 Cannons 71 | . . . . . . 6 22 2 4 13 6 10 . . . 5 2 . . . . . . 1 . . . . . . . . . . AOE 10 | . . . . 3 2 . 3 . . . . . . . . . . . 2 . . . . . . . . . . . . . . . Classes Destroyed 25 | 1 7 . 4 1 2 . . 1 . 1 1 1 . . . . 1 . . . 1 . . . . 2 . . . . . . 1 1 Worker 19 | . 2 . 2 . . . 4 . 2 . . . 1 . 2 . . . 4 . . . . . 1 . . . . . . 1 . . Builder 10 | . 1 . 2 . . . . . 1 . 1 . . . 1 1 . . 1 . . . . . . . . . . 1 . 1 . . Tunneler 4 | 2 . . . . . . . . 1 . . . . . . . . . . . . . . . . . 1 . . . . . . . Hauler 25 | . 2 . 6 . . . 3 . 4 . 1 . 1 . . 1 . . . . . . 1 . 1 . . . . 2 . 3 . . Recycler 11 | . . . 5 . . . . . 3 . . . . . . 1 . . . . . . . . . . . . . . . 1 . 1 Carrier 2 | . . . . . . . . . . . . . . . . . 2 . . . . . . . . . . . . . . . . . Operator 11 | . 1 . 3 . . . 1 . 3 . . . . . . . . . 2 . . . 1 . . . . . . . . . . . Drone 1 | . . . . . . . . . . . . . . . . . . . . . 1 . . . . . . . . . . . . . Turret 1 | . . . . . 1 . . . . . . . . . . . . . . . . . . . . . . . . . . . . . Watcher 18 | . 3 . 2 . . . 4 . 1 . . . 1 . . 1 2 . 2 . . . . . . 1 . . . 1 . . . . Swarmer 81 | . 3 . 9 3 . . 4 3 3 7 3 11 . . . 2 4 . 3 . . 5 . . 1 4 . . . 7 5 4 . . Grunt 184 | . 9 . 13 3 . 5 30 9 12 11 3 6 3 . 2 10 10 . 4 6 . 12 4 . 1 13 . 2 . . 3 6 . 7 Brawler 8 | . . . 1 . . . 1 . . . 1 . . . 1 1 . . . . . . . . . 2 . . . . . . . 1 Duelist 6 | . . . 1 . . 1 1 . . . . . . . . 1 . . . . . . . 1 . . . . . . . 1 . . Protector 1 | . . . . . . . . . . . . . . . . . . . . . . . . . . 1 . . . . . . . . Researcher 2 | . . . . . . . . . . . . . . . . . . . . . . . . . . . . . . . . . . 2 Sentry 71 | . . . 8 . . . 9 9 6 3 3 . 4 . . 4 . 4 3 . . . . . . 3 3 2 . 1 3 3 . 3 Demolisher 1 | . . . . . . . . . . . . . . . . . . . . . . . . . . 1 . . . . . . . . Specialist 5 | . . . . . . . . . . . . 2 . . . . . . . . . . . 3 . . . . . . . . . . Hunter 12 | . . . . . . . . . . 1 2 . . . 1 . 2 . 1 . . . . 1 . 1 . . . 1 2 . . . Programmer 28 | . . . . . . . . . . . 1 . . . . . 1 . . . . . 1 . 2 . 2 2 . 5 . 8 . 6 Behemoth 6 | . . . . . . . . 2 . . . . . . . . . . . . 1 1 . . . 1 . . . . 1 . . . Cetus Guard 8 | . . . . . . . . . . . . . . . . . 8 . . . . . . . . . . . . . . . . . Quarantine Guard 10 | . . . . . . . . . . . . . . . . . . . . . . . . . . . . . . . . . 10 . S7 Guard 2 | . . . . . . . . . . . . . . . . . . . . . . . . . . . . . . . . . . 2 Tracker 2 | . . . . . . . . . . . . . . . . . . . . . . . . . . . . . . . . . . 2 Combat Programmer 2 | . . . . . . . . . . . . . . . . . . . . . . . . . . . . . . . . . . 2 Fortress 1 | . . . . . . . . . . . . . . . . . . . . . . . . . . . . . . . . . 1 . Zionite 2 | . . . . . 2 . . . . . . . . . . . . . . . . . . . . . . . . . . . . . Assembled 8 | . . . . 1 7 . . . . . . . . . . . . . . . . . . . . . . . . . . . . . Thug 1 | . . . . . . . . . . . . . . . . 1 . . . . . . . . . . . . . . . . . . Best Kill Streak 20 | 2 5 . 7 3 4 6 12 7 9 6 4 8 7 . 4 5 6 1 15 2 1 8 3 1 3 20 3 2 . 5 4 11 3 5 Combat Bots Only 20 | . 3 . 6 3 3 6 12 7 5 6 4 8 2 . 3 5 6 1 4 2 1 8 3 1 3 20 2 2 . 5 4 10 3 4 Max Kills in Single Turn 9 | 1 2 . 2 3 4 1 4 2 3 3 2 2 3 . 2 2 2 1 9 2 2 2 1 1 1 2 1 1 . 1 1 2 1 1 Gunslinging 1 | . . . . . . . . . . . . . . . . . . . . . . 1 . . . . . . . . . . . . Exploded 3 | . . . . 3 1 . 1 . . . . . . . . . . . 2 . . . . . . . . . . . . . . . Melee 2 | . . . . . . . . . . . . . . . . 1 1 1 1 2 . . 1 1 1 1 1 1 . 1 1 1 1 1 Uniques/NPCs Destroyed 2 | . . . . . 2 . . . . . . . . . . . . . . . . . . . . . . . . . . . . . 8R-AWN (-9/Exiles) EX-DEC (-9/Exiles) EX-BIN (-9/Exiles) EX-HEX (-9/Exiles) Combat | -11 -10 -10 -9 -9 -9 -8 -8 -8 -8 -8 -7 -7 -7 -7 -6 -6 -6 -6 -6 -6 -5 -5 -4 -4 -4 -4 -3 -3 -3 -2 -2 -2 -2 -2 -------- Run | Scr Mat Min Mat Min Exi Min Mat Gar Mat Gar Fac Gar Fac Gar Fac Ext Cet Arc Hub Gar Fac Gar Fac Gar Fac Gar Res Arm Lab Res Gar Res Qua Sec Damage Taken 22573 | . 244 . 759 85 884 804 701 1058 413 434 344 445 152 . 143 1088 1802 163 759 408 367 974 566 249 682 1799 881 252 . 542 1283 726 906 2660 Core 14635 | . 203 . 597 62 682 673 536 757 232 264 220 260 80 . 67 660 994 87 434 237 185 533 313 158 392 1030 548 196 . 330 877 474 625 1929 Absorbed by Shields 8910 | . . . . . . . 274 385 159 168 132 171 64 . 53 406 593 56 289 147 120 356 211 95 248 670 322 128 . 277 758 754 314 1760 Redirected to Core 12818 | . 135 . 523 62 472 487 471 634 222 234 189 251 76 . 54 561 884 70 378 198 145 490 309 136 392 919 478 165 . 294 746 430 625 1788 Core Remaining (%) 76 | 100 . 100 . . . 11 . . . 100 . . . 100 . . . . . 100 . 100 . . . 30 . . 51 . . . . . Volleys Fired 1070 | 5 48 . 119 8 57 . 72 117 79 45 37 37 17 . 16 71 74 . . . 21 62 1 7 . 44 1 4 . 13 12 53 7 43 Largest 3 | 2 2 . 3 3 3 . 1 2 2 2 3 2 2 . 1 2 2 . . . 2 2 2 2 . 1 1 1 . 1 1 1 1 1 Hottest 270 | 60 46 . 69 69 76 . 65 130 133 98 126 98 98 . 30 90 270 . . . 270 270 99 150 . 30 30 50 . 40 40 40 40 40 Shots Fired 1708 | 7 96 . 357 22 99 24 128 120 110 86 77 74 23 . 16 100 85 . . . 23 71 2 11 . 44 1 4 . 13 12 53 7 43 Gun 1375 | 7 96 . 357 21 96 . 71 102 74 41 45 37 17 . 16 69 77 . . . 23 71 2 4 . 44 1 . . . 8 50 6 40 Cannon 301 | . . . . . . 24 57 18 36 45 32 37 6 . . 31 8 . . . . . . 7 . . . . . . . . . . Launcher 4 | . . . . 1 3 . . . . . . . . . . . . . . . . . . . . . . . . . . . . . Special 28 | . . . . . . . . . . . . . . . . . . . . . . . . . . . . 4 . 13 4 3 1 3 Kinetic 1430 | 2 96 . 357 21 96 24 127 102 74 41 45 37 17 . 16 69 73 . . . 21 58 1 4 . 44 1 . . . 8 50 6 40 Thermal 241 | . . . . . . . 1 18 36 45 32 37 6 . . 31 12 . . . 2 13 1 7 . . . . . . . . . . Explosive 4 | . . . . 1 3 . . . . . . . . . . . . . . . . . . . . . . . . . . . . . Electromagnetic 5 | 5 . . . . . . . . . . . . . . . . . . . . . . . . . . . . . . . . . . Robot Hit Streak 31 | 4 9 . 21 11 14 15 22 17 14 16 12 13 7 . 7 18 14 . . . 15 24 25 31 . 9 . 3 . 6 7 6 8 11 Robot Miss Streak 6 | 1 6 . 6 1 2 1 2 3 3 3 4 4 1 . 2 2 3 . . . 2 1 . 1 . 3 1 2 . . 1 4 . 4 Penetration Max 2 | . . . . . 1 . 2 1 2 2 1 2 1 . 2 1 1 . . . 1 1 . 1 . 2 . . . . . 2 . 1 Secondary Targets 7 | . 2 . 2 1 . . . . . . . . . . . . . . . . . 2 . . . . . . . . . . . . Max Gunslinging Chain 1 | . 1 . 1 1 . . . . . . . . . . . . . . . . . 1 . . . . . . . . . . . . Autonomous 81 | . . . . . . 24 57 . . . . . . . . . . . . . . . . . . . . . . . . . . . Shots Hit Robots 1641 | 5 55 . 229 16 81 23 111 79 81 59 52 45 17 . 15 79 85 10 27 20 19 64 31 30 26 54 22 28 . 42 54 69 34 79 Core Hits 809 | 2 26 . 77 10 45 7 74 38 41 34 26 26 12 . 9 35 43 7 25 9 7 31 10 13 9 48 10 10 . 21 22 37 18 27 Critical Hits 511 | . 2 . 2 2 23 2 46 56 44 18 16 21 13 . 9 41 34 2 2 1 13 28 2 5 1 40 3 . . 2 7 32 12 32 Critical Kills 202 | . 1 . 1 1 5 . 20 15 23 10 6 8 9 . 5 14 16 1 . 1 1 12 1 1 1 21 . . . 2 2 12 5 8 Critical Parts Destroyed 252 | . 1 . . 1 11 2 25 24 21 8 10 13 3 . 4 27 13 1 2 . 7 12 1 4 . 17 1 . . . 3 18 6 17 Melee Attacks 702 | . . . . . . . . . . . 1 . . . 9 5 70 10 40 30 . 2 39 26 42 35 35 41 4 73 71 53 46 70 Kinetic 25 | . . . . . . . . . . . . . . . . . . . . . . . . . . . . . . . . . 5 20 Impact . | . . . . . . . . . . . . . . . . . . . . . . . . . . . . . . . . . . . Slashing 578 | . . . . . . . . . . . . . . . 9 5 70 10 40 30 . 2 39 26 42 7 19 28 3 57 61 43 37 50 Piercing 99 | . . . . . . . . . . . 1 . . . . . . . . . . . . . . 28 16 13 1 16 10 10 4 . Sneak Attacks 30 | . . . . . . . . . . . . . . . 2 . 1 . 1 . . . 1 2 3 1 1 . . 4 1 6 2 5 Combat Hostiles 8 | . . . . . . . . . . . . . . . . . . . . . . . . 2 . . . . . . 1 . 2 3 Follow-up Attacks 89 | . . . . . . . . . . . . . . . . . 5 1 5 5 . . 6 5 4 4 7 6 . 8 14 11 2 6 Damage Inflicted 61796 | 65 934 . 3354 360 1655 1784 6654 1708 2050 1336 972 1057 479 . 570 1903 2622 420 2408 890 431 1358 1444 1935 1421 2707 1505 1768 . 2569 3423 3692 2964 5358 Guns 19340 | 65 934 . 3354 232 1316 . 1434 1621 1420 567 503 485 397 . 314 1067 1058 . . . 431 1358 20 60 . 1191 . . . . 73 765 125 550 Cannons 10339 | . . . . . . 1784 4694 87 630 769 469 572 82 . . 680 320 . . . . . . 252 . . . . . . . . . . Explosions 2268 | . . . . 128 339 . 526 . . . . . . . . . . . 1028 . . . . . . . . . . . 153 94 . . Melee 29849 | . . . . . . . . . . . . . . . 256 156 1244 420 1380 890 . . 1424 1623 1421 1516 1505 1768 . 2569 3197 2833 2839 4808 Ramming . | . . . . . . . . . . . . . . . . . . . . . . . . . . . . . . . . . . . Kinetic 26694 | 11 934 . 3354 232 1316 1784 6128 1621 1420 567 503 485 397 . 314 1067 946 . . . 363 1080 . 60 . 1191 . . . . 73 765 530 1553 Thermal 4500 | . . . . . . . 161 87 630 769 469 572 82 . . 680 432 . . . 68 278 20 252 . . . . . . . . . . Explosive 714 | . . . . 128 339 . . . . . . . . . . . . . . . . . . . . . . . . . 153 94 . . Electromagnetic 1447 | 54 . . . . . . 365 . . . . . . . . . . . 1028 . . . . . . . . . . . . . . . Impact . | . . . . . . . . . . . . . . . . . . . . . . . . . . . . . . . . . . . Slashing 25025 | . . . . . . . . . . . . . . . 256 156 1244 420 1380 890 . . 1424 1623 1421 183 1029 1579 . 1934 2851 2396 2434 3805 Piercing 3416 | . . . . . . . . . . . . . . . . . . . . . . . . . . 1333 476 189 . 635 346 437 . . Highest Corruption 5 | . 3 3 . . . . . . 1 . 5 . . . . . . . . . . . 2 1 1 1 4 4 1 5 . 5 1 . Average Corruption 2 | . 2 3 . . . . . . 1 . 2 . . . . . . . . . . . 1 1 1 1 2 3 1 1 . 2 1 . Corruption Purged 26 | . . . . . . . . . 1 . 5 . . . . . . . . . . . 2 1 . . . 3 1 7 . 5 1 . Effects 48 | . 1 1 . . . . . . 1 . 4 . . . . . . . . . . . . 2 1 4 . 15 . 5 . 13 1 . Message Errors 12 | . 1 . . . . . . . . . . . . . . . . . . . . . . . . 1 . 5 . 1 . 4 . . Matter Fused 5 | . . . . . . . . . . . . . . . . . . . . . . . . . . . . 4 . . . 1 . . Heat Flow Errors 6 | . . 1 . . . . . . . . 1 . . . . . . . . . . . . . . . . 3 . . . 1 . . Energy Discharges 7 | . . . . . . . . . . . . . . . . . . . . . . . . 1 . . . 1 . 1 . 3 1 . Data Loss (minor) 5 | . . . . . . . . . . . 2 . . . . . . . . . . . . 1 . 1 . . . . . 1 . . Data Loss (major) 1 | . . . . . . . . . . . . . . . . . . . . . . . . . . . . . . . . 1 . . Targeting Errors 10 | . . . . . . . . . . . . . . . . . . . . . . . . . 1 2 . 2 . 3 . 2 . . Weapon Failures 2 | . . . . . . . . . 1 . 1 . . . . . . . . . . . . . . . . . . . . . . . Overload Shots 16 | . . . . . . . . . . . . . . . . 2 11 . . . 2 1 . . . . . . . . . . . . Effects 3 | . . . . . . . . . . . . . . . . . . . . . . 3 . . . . . . . . . . . . Meltdown 3 | . . . . . . . . . . . . . . . . . . . . . . 3 . . . . . . . . . . . . Overflow Damage 2677 | . . . . . . 156 832 . 14 . . . . . . 3 31 . 52 . . . 54 158 133 18 17 77 . 316 129 333 124 230 Projectiles 1005 | . . . . . . 156 832 . 14 . . . . . . 3 . . . . . . . . . . . . . . . . . . Explosions 27 | . . . . . . . . . . . . . . . . . . . 20 . . . . . . . . . . . . 7 . . Melee 1645 | . . . . . . . . . . . . . . . . . 31 . 32 . . . 54 158 133 18 17 77 . 316 129 326 124 230 Knockbacks 30 | . . . . . . 14 16 . . . . . . . . . . . . . . . . . . . . . . . . . . . Impact . | . . . . . . . . . . . . . . . . . . . . . . . . . . . . . . . . . . . Kinetic 28 | . . . . . . 14 14 . . . . . . . . . . . . . . . . . . . . . . . . . . . Secondary 2 | . . . . . . . 2 . . . . . . . . . . . . . . . . . . . . . . . . . . . Self-Inflicted Damage 45 | . . . . 45 . . . . . . . . . . . . . . . . . . . . . . . . . . . . . . Shots 1 | . . . . 1 . . . . . . . . . . . . . . . . . . . . . . . . . . . . . . Rammed . | . . . . . . . . . . . . . . . . . . . . . . . . . . . . . . . . . . . Targets Rammed . | . . . . . . . . . . . . . . . . . . . . . . . . . . . . . . . . . . . Kicked . | . . . . . . . . . . . . . . . . . . . . . . . . . . . . . . . . . . . Crushed . | . . . . . . . . . . . . . . . . . . . . . . . . . . . . . . . . . . . Highest Temperature 392 | 20 43 141 215 44 59 12 1 83 30 42 214 130 64 . . 54 332 . . . 376 336 32 221 . 50 . 276 . 281 . 392 144 86 Average Temperature 55 | 20 13 76 45 22 26 4 1 30 16 16 85 40 30 . . 10 119 . . . 212 100 24 93 . 28 . 127 . 160 . 167 60 20 Received Heat Transfer 3594 | . 123 . 210 12 40 114 282 207 174 180 72 36 48 . 24 297 249 24 200 134 18 255 91 29 30 206 131 40 . 4 198 84 26 56 Effects 5 | . . . . . . . . . . . . . . . . . 2 . . . 2 1 . . . . . . . . . . . . Energy Bleed 1 | . . . . . . . . . . . . . . . . . 1 . . . . . . . . . . . . . . . . . Interference 3 | . . . . . . . . . . . . . . . . . . . . . 2 1 . . . . . . . . . . . . Short Circuit 1 | . . . . . . . . . . . . . . . . . 1 . . . . . . . . . . . . . . . . . Siege Activations . | . . . . . . . . . . . . . . . . . . . . . . . . . . . . . . . . . . . Robots Corrupted . | . . . . . . . . . . . . . . . . . . . . . . . . . . . . . . . . . . . Combat Hostiles . | . . . . . . . . . . . . . . . . . . . . . . . . . . . . . . . . . . . Parts Fried 5 | . . . . . . . 2 . . . . . . . . . . . 3 . . . . . . . . . . . . . . . Impact Corruptions 1 | . . . . . . . 1 . . . . . . . . . . . . . . . . . . . . . . . . . . . Robots Melted . | . . . . . . . . . . . . . . . . . . . . . . . . . . . . . . . . . . . Combat Hostiles . | . . . . . . . . . . . . . . . . . . . . . . . . . . . . . . . . . . . Parts Melted 8 | . . . . . . . . . . 1 3 . . . . 1 . . 1 . . . . . . . 1 . . . . 1 . . Heat Transferred 6533 | . . . . . . . 150 111 1073 1234 814 1036 148 . . 925 400 . . . 50 333 37 222 . . . . . . . . . . Parts Sabotaged . | . . . . . . . . . . . . . . . . . . . . . . . . . . . . . . . . . . . Parts Stolen . | . . . . . . . . . . . . . . . . . . . . . . . . . . . . . . . . . . . Parts Stripped . | . . . . . . . . . . . . . . . . . . . . . . . . . . . . . . . . . . . Power Chain Reactions 3 | . . . . . . . 2 . . . . . . . . . . . 1 . . . . . . . . . . . . . . . Missiles Intercepted . | . . . . . . . . . . . . . . . . . . . . . . . . . . . . . . . . . . . Alert | -11 -10 -10 -9 -9 -9 -8 -8 -8 -8 -8 -7 -7 -7 -7 -6 -6 -6 -6 -6 -6 -5 -5 -4 -4 -4 -4 -3 -3 -3 -2 -2 -2 -2 -2 ------- Run | Scr Mat Min Mat Min Exi Min Mat Gar Mat Gar Fac Gar Fac Gar Fac Ext Cet Arc Hub Gar Fac Gar Fac Gar Fac Gar Res Arm Lab Res Gar Res Qua Sec Peak Influence 1446 | 10 359 96 701 342 . 155 1143 1446 1332 1336 1035 935 745 521 396 521 438 263 1276 1052 552 773 443 768 681 898 681 324 . 284 748 803 207 466 Average Influence 432 | 4 184 96 450 299 . 42 576 1024 1046 966 813 737 595 521 336 334 219 223 392 983 467 575 282 478 534 657 458 213 . 108 329 570 69 211 Maximum Alert Level 4 | . 1 . 3 1 . . 4 4 4 4 3 3 3 2 1 2 2 1 4 3 2 3 2 3 2 3 2 1 . 1 3 3 1 2 Low Security (%) 30 | 100 45 100 9 . . 100 21 . . . . . . . . 7 47 31 39 . . . 21 1 . . 25 45 . 94 52 . 96 39 Level 1 21 | . 54 . 8 99 . . 9 . . . . . . . 100 59 48 68 40 . 20 13 54 34 3 27 5 54 . 5 5 . 3 54 Level 2 25 | . . . 77 . . . 27 1 . 14 18 36 84 100 . 33 3 . . . 79 61 24 37 96 6 68 . . . 32 93 . 5 Level 3 17 | . . . 4 . . . 38 61 55 56 81 63 15 . . . . . 13 100 . 24 . 26 . 65 . . . . 8 6 . . Level 4 4 | . . . . . . . 2 36 44 29 . . . . . . . . 7 . . . . . . . . . . . . . . . Level 5 . | . . . . . . . . . . . . . . . . . . . . . . . . . . . . . . . . . . . High Security . | . . . . . . . . . . . . . . . . . . . . . . . . . . . . . . . . . . . Max Security . | . . . . . . . . . . . . . . . . . . . . . . . . . . . . . . . . . . . Squads Dispatched 72 | . 3 . 5 1 . . 7 . 7 . 4 . 1 . 1 1 1 . 10 . . . 1 . 4 . 3 1 . 5 . 8 1 8 Investigation 26 | . 2 . 1 1 . . 5 . 3 . 2 . . . . . 1 . 6 . . . . . . . . . . 2 . 2 1 . Extermination 10 | . . . . . . . . . . . 1 . . . . . . . 1 . . . . . . . 1 1 . 2 . 2 . 2 Reinforcement 25 | . 1 . 4 . . . 1 . 3 . 1 . 1 . 1 . . . 2 . . . 1 . 3 . 2 . . 1 . 1 . 3 Assault 5 | . . . . . . . . . . . . . . . . 1 . . . . . . . . 1 . . . . . . 3 . . Garrison 3 | . . . . . . . 1 . 1 . . . . . . . . . 1 . . . . . . . . . . . . . . . Intercept 3 | . . . . . . . . . . . . . . . . . . . . . . . . . . . . . . . . . . 3 Construction Impeded 1 | . . . . . . . . . . . . . . . . . . . . . . . . . 1 . . . . . . . . . Haulers Reinforced 3 | . . . . . . . . . . . . . 1 . . . . . . . . . 1 . . . . . . . . 1 . . Alert ID Control Effect 16 | . . . . . . . . . . . . . . . . . . . . . . . . 1 1 . . . . . 8 6 . . Stealth | -11 -10 -10 -9 -9 -9 -8 -8 -8 -8 -8 -7 -7 -7 -7 -6 -6 -6 -6 -6 -6 -5 -5 -4 -4 -4 -4 -3 -3 -3 -2 -2 -2 -2 -2 --------- Run | Scr Mat Min Mat Min Exi Min Mat Gar Mat Gar Fac Gar Fac Gar Fac Ext Cet Arc Hub Gar Fac Gar Fac Gar Fac Gar Res Arm Lab Res Gar Res Qua Sec Distress Signals 36 | . 2 . 5 . . . 1 . 3 . . . 1 . . 1 2 . 2 . . . . . 6 . 2 . . 2 . 2 . 7 Communications Jammed . | . . . . . . . . . . . . . . . . . . . . . . . . . . . . . . . . . . . Distress Signals . | . . . . . . . . . . . . . . . . . . . . . . . . . . . . . . . . . . . Times Spotted 734 | . 18 . 52 8 35 6 73 23 33 22 15 27 8 . 5 41 36 4 30 7 1 18 7 16 27 38 29 8 . 23 36 42 8 38 Peak Tracking Total 22 | . 3 . 8 4 8 3 8 6 7 6 4 7 2 . 3 7 7 1 11 3 1 6 3 8 12 22 11 3 . 6 6 6 3 10 Tactical Retreats 60 | . 1 . 2 . 8 . 9 1 1 2 1 3 . . . 7 2 . 1 1 . . . . 3 3 5 . . 1 2 4 . 3 Traps | -11 -10 -10 -9 -9 -9 -8 -8 -8 -8 -8 -7 -7 -7 -7 -6 -6 -6 -6 -6 -6 -5 -5 -4 -4 -4 -4 -3 -3 -3 -2 -2 -2 -2 -2 ------- Run | Scr Mat Min Mat Min Exi Min Mat Gar Mat Gar Fac Gar Fac Gar Fac Ext Cet Arc Hub Gar Fac Gar Fac Gar Fac Gar Res Arm Lab Res Gar Res Qua Sec Traps Triggered 36 | . 2 . . . . . 1 1 . 2 . 7 . 1 . 1 . . . 3 . 1 3 3 . 4 . . . . 6 1 . . Indirectly . | . . . . . . . . . . . . . . . . . . . . . . . . . . . . . . . . . . . Trap Hack Attempts . | . . . . . . . . . . . . . . . . . . . . . . . . . . . . . . . . . . . Triggered . | . . . . . . . . . . . . . . . . . . . . . . . . . . . . . . . . . . . Disarmed 4 | . . . . . . . . . . . . . . . . . . . . . . . . . . . . . . . . . 4 . Reprogrammed . | . . . . . . . . . . . . . . . . . . . . . . . . . . . . . . . . . . . Reused . | . . . . . . . . . . . . . . . . . . . . . . . . . . . . . . . . . . . Traps Extracted . | . . . . . . . . . . . . . . . . . . . . . . . . . . . . . . . . . . . Installed . | . . . . . . . . . . . . . . . . . . . . . . . . . . . . . . . . . . . Triggered . | . . . . . . . . . . . . . . . . . . . . . . . . . . . . . . . . . . . Machines | -11 -10 -10 -9 -9 -9 -8 -8 -8 -8 -8 -7 -7 -7 -7 -6 -6 -6 -6 -6 -6 -5 -5 -4 -4 -4 -4 -3 -3 -3 -2 -2 -2 -2 -2 ---------- Run | Scr Mat Min Mat Min Exi Min Mat Gar Mat Gar Fac Gar Fac Gar Fac Ext Cet Arc Hub Gar Fac Gar Fac Gar Fac Gar Res Arm Lab Res Gar Res Qua Sec Machines Disabled 97 | . 1 . 3 . 6 . 13 4 . 2 7 . . . . 4 5 . 19 1 1 2 . 1 1 3 . 4 1 . 6 1 9 3 Max in Single Turn 19 | . 1 . 1 . 1 . 6 1 . 1 1 . . . . 1 1 . 19 1 1 1 . 1 . 1 . 1 1 . 2 1 1 1 Garrison Access 2 | . . . . . . . . . . . . . . . 1 . . . . . . . . . . . 1 . . . . . . . Garrison Relay 14 | . . . . . . . . 3 . 2 . . . . . . . . . 1 . 2 . 1 . 2 . . . . 3 . . . Phase Generator 1 | . . . . . . . . . . . . . . . . . . . . . . . . . . . . . . . 1 . . . Network Hub 3 | . . . . . . . . . . . . . . . . . . . 3 . . . . . . . . . . . . . . . Machines Sabotaged 2 | . . . . . . . . . . . . . . . . . . . 2 . . . . . . . . . . . . . . . Garrisons Compromised . | . . . . . . . . . . . . . . . . . . . . . . . . . . . . . . . . . . . Overloaded Fab Kills . | . . . . . . . . . . . . . . . . . . . . . . . . . . . . . . . . . . . Fab Network Shutdowns . | . . . . . . . . . . . . . . . . . . . . . . . . . . . . . . . . . . . Hacking | -11 -10 -10 -9 -9 -9 -8 -8 -8 -8 -8 -7 -7 -7 -7 -6 -6 -6 -6 -6 -6 -5 -5 -4 -4 -4 -4 -3 -3 -3 -2 -2 -2 -2 -2 --------- Run | Scr Mat Min Mat Min Exi Min Mat Gar Mat Gar Fac Gar Fac Gar Fac Ext Cet Arc Hub Gar Fac Gar Fac Gar Fac Gar Res Arm Lab Res Gar Res Qua Sec Machines Accessed 139 | . 5 . 8 2 1 . 16 . 8 . 7 . 2 . 1 10 4 1 12 . 4 . 9 . 3 . 5 3 2 8 . 6 16 6 Terminals 94 | . 4 . 7 2 . . 10 . 6 . 3 . 1 . . 10 4 . 11 . 2 . 4 . 1 . 1 2 . 3 . 5 13 5 Fabricators 7 | . . . . . . . . . . . 2 . . . . . . . . . 1 . 2 . 1 . . 1 . . . . . . Repair Stations 6 | . . . . . . . 2 . . . . . . . . . . . . . . . 1 . . . 1 . . 1 . . 1 . Recycling Units 3 | . 1 . . . . . 1 . . . . . . . . . . . . . . . . . . . . . . 1 . . . . Scanalyzers 13 | . . . 1 . . . 2 . 1 . 1 . . . . . . . . . . . 1 . . . 1 . . 2 . 1 2 1 Garrison Access 12 | . . . . . . . 1 . 1 . 1 . 1 . 1 . . . 1 . 1 . 1 . 1 . 2 . . 1 . . . . Total Hacks 816 | . 21 . 40 7 1 . 66 . 30 . 25 . 3 . 1 54 16 25 56 . 16 . 53 . 12 . 39 27 20 67 . 63 110 64 Successful 487 | . 13 . 27 5 1 . 44 . 17 . 16 . 1 . 1 29 9 25 34 . 6 . 36 . 8 . 23 14 20 32 . 23 65 38 Failed 324 | . 7 . 12 2 . . 21 . 13 . 9 . 2 . . 25 7 . 21 . 10 . 17 . 4 . 16 13 . 35 . 39 45 26 Catastrophic 37 | . . . 1 . . . 1 . 1 . . . 2 . . 2 2 . . . 1 . 3 . 1 . . 3 . 1 . 12 5 2 Database Lockouts 7 | . 1 . 2 . . . 2 . . . . . . . . . . . 1 . . . . . . . . . . . . 1 . . Manual 357 | . 14 . 26 7 1 . 27 . 15 . 8 . 1 . . 30 8 . 33 . 4 . 21 . 4 . 23 11 . 20 . 41 44 19 Terminals 609 | . 18 . 34 7 . . 43 . 23 . 15 . 1 . . 54 16 . 53 . 9 . 31 . 7 . 19 23 . 42 . 60 97 57 Fabricators 26 | . . . . . . . . . . . 7 . . . . . . . . . 3 . 9 . 3 . . 4 . . . . . . Repair Stations 26 | . . . . . . . 9 . . . . . . . . . . . . . . . 2 . . . 8 . . 2 . . 5 . Recycling Units 8 | . 3 . . . . . 1 . . . . . . . . . . . . . . . . . . . . . . 4 . . . . Scanalyzers 67 | . . . 6 . . . 12 . 6 . 1 . . . . . . . . . . . 7 . . . 3 . . 14 . 3 8 7 Garrison Access 34 | . . . . . . . 1 . 1 . 2 . 2 . 1 . . . 3 . 4 . 4 . 2 . 9 . . 5 . . . . Terminal Hacks 263 | . 8 . 16 5 1 . 18 . 5 . 9 . . . . 16 7 25 18 . 2 . 12 . 2 . 8 8 20 15 . 15 31 22 Record 59 | . . . . . . . . . . . . . . . . . 6 25 . . . . . . . . . . 20 . . 1 6 1 Part Schematic 21 | . . . . 1 . . . . . . 1 . . . . 3 . . 4 . . . 5 . . . . 1 . 2 . . 1 3 Robot Schematic 9 | . . . . 3 . . . . . . 1 . . . . . . . . . . . . . . . . . . 2 . 1 2 . Robot Analysis 21 | . 3 . 2 . . . 4 . . . 1 . . . . 1 . . 2 . . . . . . . . 3 . 2 . 3 . . Prototype ID Bank 24 | . 1 . 1 . . . 3 . 1 . 1 . . . . 2 . . 4 . . . 1 . 1 . . . . . . 2 4 3 Open Door 6 | . . . . . . . . . . . . . . . . 5 . . . . . . . . . . . . . . . 1 . . Level Access Points 2 | . . . . . . . . . . . . . . . . . . . . . . . . . . . . . . 1 . . 1 . Branch Access Points 10 | . 1 . 1 . . . 1 . . . . . . . . 1 . . . . 1 . 1 . . . 1 . . 1 . . 1 1 Emergency Access Points 1 | . . . . . . . . . . . . . . . . . . . . . . . . . . . . . . . . . . 1 Machine Index 4 | . . . . . . . . . . . . . . . . . . . . . . . . . . . . 1 . 1 . . 1 1 Terminal Index 14 | . . . 1 1 . . 2 . . . 1 . . . . 1 . . 1 . . . 1 . 1 . 1 1 . . . 1 1 1 Fabricator Index 1 | . . . . . . . . . . . . . . . . . . . . . . . . . . . . . . . . . . 1 Scanalyzer Index 1 | . . . . . . . . . . . . . . . . . . . . . . . . . . . . . . . . . . 1 Garrison Index 6 | . . . . . . . . . . . 1 . . . . . . . 1 . . . 1 . . . 1 . . . . 1 1 . Unreport Threat 28 | . . . 3 . . . 2 . 2 . 2 . . . . 3 1 . 1 . 1 . 2 . . . 4 . . 1 . 5 1 . Locate Traps 21 | . 1 . 1 . . . 4 . 1 . . . . . . . . . 3 . . . 1 . . . . 2 . 2 . . 4 2 Disarm Traps 1 | . . . . . . . . . . . . . . . . . . . . . . . . . . . . . . . . . 1 . Dispatch Records 1 | . . . . . . . . . . . . . . . . . . . . . . . . . . . . . . . . . . 1 Recall Investigation 2 | . . . 1 . . . . . . . . . . . . . . . 1 . . . . . . . . . . . . . . . Recall Reinforcements 1 | . . . . . . . . . . . . . . . . . . . . . . . . . . . . . . . . . . 1 Hauler Manifests 8 | . . . 2 . . . 1 . . . 1 . . . . . . . 1 . . . . . . . . . . 1 . . 1 1 Registered Components 3 | . 1 . 1 . . . . . . . . . . . . . . . . . . . . . . . . . . . . . 1 . Registered Prototypes 2 | . . . . . . . . . . . . . . . . . . . . . . . . . . . . . . 1 . . 1 . Zone Layout 16 | . 1 . 3 . . . 1 . 1 . . . . . . . . . . . . . . . . . 1 . . 1 . . 4 4 EX-Prototype ID Bank 1 | . . . . . 1 . . . . . . . . . . . . . . . . . . . . . . . . . . . . . Fabricator Hacks 14 | . . . . . . . . . . . 3 . . . . . . . . . 1 . 6 . 2 . . 2 . . . . . . Load Schematic 7 | . . . . . . . . . . . 2 . . . . . . . . . . . 3 . 1 . . 1 . . . . . . Build 7 | . . . . . . . . . . . 1 . . . . . . . . . 1 . 3 . 1 . . 1 . . . . . . Repair Station Hacks 15 | . . . . . . . 7 . . . . . . . . . . . . . . . 2 . . . 3 . . . . . 3 . Scan Component 9 | . . . . . . . 4 . . . . . . . . . . . . . . . 1 . . . 2 . . . . . 2 . Repair 6 | . . . . . . . 3 . . . . . . . . . . . . . . . 1 . . . 1 . . . . . 1 . Recycling Unit Hacks 3 | . 1 . . . . . 1 . . . . . . . . . . . . . . . . . . . . . . 1 . . . . Report Inventory 3 | . 1 . . . . . 1 . . . . . . . . . . . . . . . . . . . . . . 1 . . . . Scanalyzer 47 | . . . 6 . . . 10 . 6 . . . . . . . . . . . . . 5 . . . 2 . . 7 . 2 6 3 Insert Component 25 | . . . 3 . . . 4 . 3 . . . . . . . . . . . . . 2 . . . 1 . . 4 . 1 6 1 Analyze 22 | . . . 3 . . . 6 . 3 . . . . . . . . . . . . . 3 . . . 1 . . 3 . 1 . 2 Garrison Access Hacks 13 | . . . . . . . 1 . 1 . 1 . 1 . 1 . . . 1 . 1 . 1 . 1 . 2 . . 2 . . . . Unlock Access 9 | . . . . . . . 1 . 1 . 1 . 1 . . . . . 1 . 1 . 1 . 1 . . . . 1 . . . . Seal Access 2 | . . . . . . . . . . . . . . . 1 . . . . . . . . . . . 1 . . . . . . . Coupler Status 2 | . . . . . . . . . . . . . . . . . . . . . . . . . . . 1 . . 1 . . . . Unauthorized Hacks 132 | . 4 . 5 . . . 7 . 5 . 3 . . . . 13 2 . 15 . 2 . 10 . 3 . 8 4 . 7 . 6 25 13 Terminals 114 | . 3 . 5 . . . 7 . 5 . 3 . . . . 13 2 . 14 . . . 6 . 1 . 4 3 . 4 . 6 25 13 Track 29 | . . . 1 . . . 1 . . . . . . . . 2 . . 3 . . . 1 . . . 1 1 . 1 . 2 11 5 Assimilate 3 | . . . . . . . . . 1 . . . . . . . . . . . . . . . . . 1 . . . . . . 1 Botnet 64 | . 3 . 3 . . . 4 . 3 . 3 . . . . 9 2 . 5 . . . 4 . 1 . 1 2 . 2 . 4 13 5 Detonate 4 | . . . . . . . 1 . . . . . . . . . . . 3 . . . . . . . . . . . . . . . Operators 11 | . . . 1 . . . 1 . 1 . . . . . . 2 . . . . . . 1 . . . 1 . . 1 . . 1 2 Sabotage 3 | . . . . . . . . . . . . . . . . . . . 3 . . . . . . . . . . . . . . . Fabricators 5 | . . . . . . . . . . . . . . . . . . . . . 1 . 2 . 1 . . 1 . . . . . . Report 5 | . . . . . . . . . . . . . . . . . . . . . 1 . 2 . 1 . . 1 . . . . . . Repair Stations . | . . . . . . . . . . . . . . . . . . . . . . . . . . . . . . . . . . . Recycling Units 2 | . 1 . . . . . . . . . . . . . . . . . . . . . . . . . . . . 1 . . . . Reject 1 | . 1 . . . . . . . . . . . . . . . . . . . . . . . . . . . . . . . . . Mask 1 | . . . . . . . . . . . . . . . . . . . . . . . . . . . . . . 1 . . . . Scanalyzers . | . . . . . . . . . . . . . . . . . . . . . . . . . . . . . . . . . . . Garrison Access 11 | . . . . . . . . . . . . . . . . . . . 1 . 1 . 2 . 1 . 4 . . 2 . . . . Broadcast 1 | . . . . . . . . . . . . . . . . . . . . . . . . . . . 1 . . . . . . . Reprogram 6 | . . . . . . . . . . . . . . . . . . . 1 . 1 . 1 . 1 . 1 . . 1 . . . . Watchers 4 | . . . . . . . . . . . . . . . . . . . . . . . 1 . . . 2 . . 1 . . . . Data Cores Recovered 5 | . . . 1 . . . 1 . 2 . . . . . . . . . . . . . 1 . . . . . . . . . . . Used 3 | . . . . . . . 1 . 1 . . . . . . . . . . . . . 1 . . . . . . . . . . . Hacking Detections 98 | . 4 . 6 2 . . 11 . 6 . 6 . 2 . . 9 2 . 11 . 4 . 6 . 1 . 4 2 . 6 . 5 8 3 Full Trace Events 17 | . 1 . 1 1 . . 3 . 4 . 1 . . . . . 1 . 1 . . . . . . . . . . 2 . 1 1 . Feedback Events 2 | . . . . . . . . . 1 . . . . . . . . . . . . . . . . . . . . 1 . . . . Corruption 2 | . . . . . . . . . 1 . . . . . . . . . . . . . . . . . . . . 1 . . . . Feedback Blocked . | . . . . . . . . . . . . . . . . . . . . . . . . . . . . . . . . . . . Robot Schematics Acquired 9 | . . . . 3 . . . . . . 1 . . . . . . . . . . . . . . . . . . 2 . 1 2 . Robots Built 2 | . . . . . . . . . . . 1 . . . . . . . . . . . . . 1 . . . . . . . . . Matter 306 | . . . . . . . . . . . 153 . . . . . . . . . . . . . 153 . . . . . . . . . Time 121 | . . . . . . . . . . . 40 . . . . . . . . . . . . . 81 . . . . . . . . . Total Robot Build Rating 2 | . . . . . . . . . . . 1 . . . . . . . . . . . . . 1 . . . . . . . . . Part Schematics Acquired 39 | . . . 3 1 . . 4 . 3 . 1 . . . . 3 . . 4 . . . 7 . . . 1 1 . 5 . 1 1 4 Parts Built 6 | . . . . . . . . . . . . . . . . . . . . . 2 . 3 . . . . 1 . . . . . . Matter 1408 | . . . . . . . . . . . . . . . . . . . . . 256 . 768 . . . . 384 . . . . . . Time 491 | . . . . . . . . . . . . . . . . . . . . . 128 . 261 . . . . 102 . . . . . . Total Part Build Rating 45 | . . . . . . . . . . . . . . . . . . . . . 16 . 21 . . . . 8 . . . . . . Parts Repaired 6 | . . . . . . . 3 . . . . . . . . . . . . . . . 1 . . . 1 . . . . . 1 . Time 264 | . . . . . . . 171 . . . . . . . . . . . . . . . 22 . . . 26 . . . . . 45 . Parts Recycled . | . . . . . . . . . . . . . . . . . . . . . . . . . . . . . . . . . . . Recycled Matter . | . . . . . . . . . . . . . . . . . . . . . . . . . . . . . . . . . . . Retrieved Matter . | . . . . . . . . . . . . . . . . . . . . . . . . . . . . . . . . . . . Retrieved Components . | . . . . . . . . . . . . . . . . . . . . . . . . . . . . . . . . . . . Parts Scanalyzed 18 | . . . 3 . . . 4 . 3 . . . . . . . . . . . . . 2 . . . 1 . . 3 . 1 . 1 Part Schematics Acquired 18 | . . . 3 . . . 4 . 3 . . . . . . . . . . . . . 2 . . . 1 . . 3 . 1 . 1 Parts Damaged 1 | . . . . . . . . . . . . . . . . . . . . . . . . . . . . . . 1 . . . . Bothacking | -11 -10 -10 -9 -9 -9 -8 -8 -8 -8 -8 -7 -7 -7 -7 -6 -6 -6 -6 -6 -6 -5 -5 -4 -4 -4 -4 -3 -3 -3 -2 -2 -2 -2 -2 ------------ Run | Scr Mat Min Mat Min Exi Min Mat Gar Mat Gar Fac Gar Fac Gar Fac Ext Cet Arc Hub Gar Fac Gar Fac Gar Fac Gar Res Arm Lab Res Gar Res Qua Sec Used RIF Installer 9 | . . . . . . . . 1 . 1 . 1 . 1 . . . . . 1 . 1 . 1 . 1 . . . . 1 . . . Coupler Efficiency 1 | . . . . . . . . . . . . . . . . . . . . . . . . . . . . . . . 1 . . . Robot Detection 1 | . . . . . . . . . . 1 . . . . . . . . . . . . . . . . . . . . . . . . Patrol Navigation 1 | . . . . . . . . . . . . . . 1 . . . . . . . . . . . . . . . . . . . . Alert ID Control 1 | . . . . . . . . . . . . . . . . . . . . . . 1 . . . . . . . . . . . . Program Shield 1 | . . . . . . . . . . . . 1 . . . . . . . . . . . . . . . . . . . . . . Autoassimilate 2 | . . . . . . . . . . . . . . . . . . . . 1 . . . 1 . . . . . . . . . . Crosswire 1 | . . . . . . . . . . . . . . . . . . . . . . . . . . 1 . . . . . . . . Robots Hacked 43 | . . . . . . . . . . . . . . . . . . . . . . . . 1 3 2 1 2 . 10 8 9 1 6 Non-combat 4 | . . . . . . . . . . . . . . . . . . . . . . . . . . . . 1 . 1 . 1 . 1 Combat 39 | . . . . . . . . . . . . . . . . . . . . . . . . 1 3 2 1 1 . 9 8 8 1 5 Autoassimilated 22 | . . . . . . . . . . . . . . . . . . . . . . . . 1 3 2 1 . . 2 4 6 . 3 Robot Hacks Applied 26 | . . . . . . . . . . . . . . . . . . . . . . . . . . . . 3 . 12 4 3 1 3 parse_system 5 | . . . . . . . . . . . . . . . . . . . . . . . . . . . . 1 . 1 . 1 1 1 ignore_parts 1 | . . . . . . . . . . . . . . . . . . . . . . . . . . . . . . 1 . . . . disable_weapons 3 | . . . . . . . . . . . . . . . . . . . . . . . . . . . . 1 . 2 . . . . overwrite_iff 10 | . . . . . . . . . . . . . . . . . . . . . . . . . . . . 1 . 7 1 1 . . formatsys_high 7 | . . . . . . . . . . . . . . . . . . . . . . . . . . . . . . 1 3 1 . 2 Relay Couplers Released 22 | . . . . . . . . 4 . 4 . . . . . . . . . 1 . 3 . 1 . 3 . . . . 6 . . . Machine Destruction 22 | . . . . . . . . 4 . 4 . . . . . . . . . 1 . 3 . 1 . 3 . . . . 6 . . . Attached 7 | . . . . . . . . . . . . . . . . . . . . . . . . 1 1 . . 1 . 1 2 1 . . Crosswired 3 | . . . . . . . . . . . . . . . . . . . . . . . . . . 2 . . . . 1 . . . Robots Rewired 19 | . . . . . . . . . . 3 . . . . 1 8 . . . . . . . 7 . . . . . . . . . . Allies Hacked . | . . . . . . . . . . . . . . . . . . . . . . . . . . . . . . . . . . . Hacks Repelled . | . . . . . . . . . . . . . . . . . . . . . . . . . . . . . . . . . . . Allies | -11 -10 -10 -9 -9 -9 -8 -8 -8 -8 -8 -7 -7 -7 -7 -6 -6 -6 -6 -6 -6 -5 -5 -4 -4 -4 -4 -3 -3 -3 -2 -2 -2 -2 -2 -------- Run | Scr Mat Min Mat Min Exi Min Mat Gar Mat Gar Fac Gar Fac Gar Fac Ext Cet Arc Hub Gar Fac Gar Fac Gar Fac Gar Res Arm Lab Res Gar Res Qua Sec Total Allies 80 | . . . . . . . . . . 3 1 . . . 1 18 . . 3 . . . 4 8 4 2 2 1 . 12 8 8 . 5 Largest Group 11 | . . . . . . . . . . 3 4 . . . . 11 9 . 1 . . . 4 6 3 1 1 1 . 3 8 3 . 3 Highest-Rated Group 464 | . . . . . . . . . . 63 73 . . . . 287 223 . 29 . . . 188 296 135 47 56 64 . 132 464 186 . 170 Highest-Rated Ally 156 | . . . . . . . . . . 21 21 . . . . 156 31 . 29 . . . 47 56 58 47 56 64 . 58 64 64 . 69 Total Orders 11 | . . . . . . . . . . . . . . . . . . . . . 3 . . . 5 . . . . 1 . . . 2 STAY 1 | . . . . . . . . . . . . . . . . . . . . . . . . . . . . . . . . . . 1 GOTO 1 | . . . . . . . . . . . . . . . . . . . . . . . . . . . . . . . . . . 1 ROAM 1 | . . . . . . . . . . . . . . . . . . . . . . . . . . . . . . 1 . . . . EXPLORE 8 | . . . . . . . . . . . . . . . . . . . . . 3 . . . 5 . . . . . . . . . Ally Attacks 313 | . . . . . . . . . . . 8 . . . 1 103 12 . 4 . . . . 46 14 1 1 1 . 17 57 44 . 4 Total Damage 9157 | . . . . . . . . . . . 280 . . . . 2290 218 . 76 . . . . 1265 1208 39 24 24 . 468 1782 1322 . 161 Kills 61 | . . . . . . . . . . . 2 . . . . 17 . . . . . . . 20 6 . . . . . 9 7 . . Allies Corrupted 2 | . . . . . . . . . . . . . . . . . . . . . 1 . . . . . . . . . . 1 . . Allies Melted 1 | . . . . . . . . . . . . . . . . 1 . . . . . . . . . . . . . . . . . . Intel | -11 -10 -10 -9 -9 -9 -8 -8 -8 -8 -8 -7 -7 -7 -7 -6 -6 -6 -6 -6 -6 -5 -5 -4 -4 -4 -4 -3 -3 -3 -2 -2 -2 -2 -2 ------- Run | Scr Mat Min Mat Min Exi Min Mat Gar Mat Gar Fac Gar Fac Gar Fac Ext Cet Arc Hub Gar Fac Gar Fac Gar Fac Gar Res Arm Lab Res Gar Res Qua Sec Robot Analysis Total 21 | . 3 . 2 . . . 4 . . . 1 . . . . 1 . . 2 . . . . . . . . 3 . 2 . 3 . . Derelict Logs Recovered 3 | . . 2 . 1 . . . . . . . . . . . . . . . . . . . . . . . . . . . . . . Drone Launches 16 | . . . . . . . . . . . . . . . . . . . . . 4 . . . 12 . . . . . . . . . Drone Recoveries . | . . . . . . . . . . . . . . . . . . . . . . . . . . . . . . . . . . . Exploration | -11 -10 -10 -9 -9 -9 -8 -8 -8 -8 -8 -7 -7 -7 -7 -6 -6 -6 -6 -6 -6 -5 -5 -4 -4 -4 -4 -3 -3 -3 -2 -2 -2 -2 -2 ------------- Run | Scr Mat Min Mat Min Exi Min Mat Gar Mat Gar Fac Gar Fac Gar Fac Ext Cet Arc Hub Gar Fac Gar Fac Gar Fac Gar Res Arm Lab Res Gar Res Qua Sec Turns Passed 20382 | 75 572 87 1174 226 1577 342 1052 651 585 776 577 304 183 50 186 920 936 300 259 293 297 291 533 593 423 482 347 751 147 924 947 911 1653 958 Spaces Moved 19104 | 50 528 146 1251 224 900 573 1022 653 549 557 783 319 250 94 184 835 877 191 327 268 367 198 575 605 488 526 459 572 240 702 697 705 1827 562 Core 13 | 8 . . . . . . . . . . . . . . . 3 . . . 1 . . . . . . . . . . . . 1 . Treads 593 | . . . . 12 581 . . . . . . . . . . . . . . . . . . . . . . . . . . . . . Legs 185 | . . . . . 185 . . . . . . . . . . . . . . . . . . . . . . . . . . . . . Wheels 204 | 42 162 . . . . . . . . . . . . . . . . . . . . . . . . . . . . . . . . . Hover 2002 | . 366 146 1251 212 27 . . . . . . . . . . . . . . . . . . . . . . . . . . . . . Flight 16107 | . . . . . 107 573 1022 653 549 557 783 319 250 94 184 832 877 191 327 267 367 198 575 605 488 526 459 572 240 702 697 705 1826 562 Fastest Speed 50 | 50 56 56 52 76 50 50 50 50 50 50 50 50 50 50 50 50 50 50 50 50 50 50 50 50 50 50 50 50 50 50 50 50 50 50 Average Speed 56 | 92 69 56 53 81 153 50 50 50 50 50 50 50 50 50 50 50 50 50 50 50 50 50 50 50 50 50 50 50 50 50 50 57 50 50 Slowest Speed 350 | 100 100 56 76 170 170 150 50 50 50 50 50 50 50 50 50 300 150 50 50 300 50 50 50 50 50 50 50 50 50 50 50 150 350 50 Overloaded Moves . | . . . . . . . . . . . . . . . . . . . . . . . . . . . . . . . . . . . Propulsion Burnouts . | . . . . . . . . . . . . . . . . . . . . . . . . . . . . . . . . . . . Robots Hopped 44 | . . . . . . 5 8 . 6 . 2 . 5 . . 5 . . . . 1 . . . 4 . 4 1 . . . 1 . 2 Cave-ins Triggered . | . . . . . . . . . . . . . . . . . . . . . . . . . . . . . . . . . . . Teleports 1 | . . . . . . . . . . . . . . . . . . . . . . . . . . . . . 1 . . . . . Exploration Rate (%) 51 | 5 62 44 84 46 91 92 84 60 52 62 25 66 8 39 4 79 97 86 39 44 10 48 14 68 22 75 22 38 99 20 95 25 90 21 Regions Visited 34 Branch Regions 12 Pre-discovered Areas . | . . . . . . . . . . . . . . . . . . . . . . . . . . . . . . . . . . . Known Exits Taken 22 | . 1 1 1 . . 1 1 . 1 . 1 . 1 . 1 1 1 1 1 . 1 . 1 . 1 . 1 1 1 1 . 1 1 . Unknown Exits Taken 3 | 1 . . . 1 1 . . . . . . . . . . . . . . . . . . . . . . . . . . . . . Scrap Searched 6 | . . 2 . 2 . 2 . . . . . . . . . . . . . . . . . . . . . . . . . . . . Spaces Dug 61 | . . . . . . . 1 . 1 . 1 . . . 4 . . . 4 . . . 3 . 4 1 7 3 . 18 4 3 6 1 Terrain Destroyed 798 | . . . . 8 22 . 57 4 15 8 33 4 . . 8 11 4 . 461 . 1 9 3 . 4 3 7 3 . 18 81 20 6 8 Melee 59 | . . . . . . . . . . . 1 . . . 4 . . . 4 . . . 3 . 4 1 7 3 . 18 4 3 6 1 Projectile 110 | . . . . . 10 . 24 4 15 8 4 4 . . 4 11 4 . . . 1 9 . . . 2 . . . . . 3 . 7 AOE 629 | . . . . 8 12 . 33 . . . 28 . . . . . . . 457 . . . . . . . . . . . 77 14 . . Actions | -11 -10 -10 -9 -9 -9 -8 -8 -8 -8 -8 -7 -7 -7 -7 -6 -6 -6 -6 -6 -6 -5 -5 -4 -4 -4 -4 -3 -3 -3 -2 -2 -2 -2 -2 --------- Run | Scr Mat Min Mat Min Exi Min Mat Gar Mat Gar Fac Gar Fac Gar Fac Ext Cet Arc Hub Gar Fac Gar Fac Gar Fac Gar Res Arm Lab Res Gar Res Qua Sec Total 26372 | 68 656 151 1562 254 1028 620 1478 860 742 967 902 405 285 95 250 1240 1220 381 372 385 462 337 767 856 609 655 529 977 260 1173 1187 1086 2481 1072 Wait 3917 | 6 49 4 97 15 6 46 295 27 82 315 47 20 5 . 7 224 116 167 10 21 57 14 125 92 72 . 29 347 . 342 238 215 482 345 Move 18978 | 49 527 145 1250 223 899 562 1006 651 538 555 778 317 239 92 183 825 876 190 326 266 364 196 574 603 480 524 450 569 239 701 695 702 1826 558 Hop 39 | . . . . . . 5 7 . 4 . 2 . 5 . . 4 . . . . 1 . . . 3 . 4 1 . . . 1 . 2 Pick Up 107 | 1 3 1 14 . 9 . 4 4 2 . 3 . 1 . . 2 5 . 1 . 1 4 2 5 2 2 1 1 2 5 8 3 16 5 Fast Attach 159 | 7 5 . 11 . 13 2 6 . 4 . 5 . 1 . 2 1 5 . . 2 4 1 9 1 . 1 4 2 9 7 2 11 27 17 Attach 24 | . . . 3 . . . 4 . 3 . 1 . . . . 1 1 . . . . . 1 1 1 1 . 1 . 1 . 2 1 2 Detach 6 | . . . . . . . . . 2 . . . . . . . . . . . . . 1 . . . 1 1 . . . . 1 . Swap 67 | . 2 . 2 2 5 . 4 2 1 . 3 . . . . 2 1 . 1 . 1 . 2 3 . 2 2 6 . 6 6 7 4 3 Drop 224 | . 7 1 20 . 24 2 3 6 5 . 7 . 2 . 2 2 9 . . 4 4 3 6 5 2 1 4 3 7 13 7 12 45 18 Fire 1070 | 5 48 . 119 8 57 . 72 117 79 45 37 37 17 . 16 71 74 . . . 21 62 1 7 . 44 1 4 . 13 12 53 7 43 Melee 542 | . . . . . . . . . . . 1 . . . 9 5 56 9 31 25 . 1 32 19 35 28 22 28 3 54 50 34 41 59 Ram . | . . . . . . . . . . . . . . . . . . . . . . . . . . . . . . . . . . . Kick . | . . . . . . . . . . . . . . . . . . . . . . . . . . . . . . . . . . . Crush . | . . . . . . . . . . . . . . . . . . . . . . . . . . . . . . . . . . . Escape Stasis 272 | . . . . . . . . . . 6 . 21 . 3 . 3 . . . 30 . 8 . 66 . 41 . . . . 94 . . . Rewire 124 | . . . . . 1 . . . . 23 . . . . 26 44 . . . . . . . 29 . . . . . 1 . . . . Trap . | . . . . . . . . . . . . . . . . . . . . . . . . . . . . . . . . . . . Miscellaneous 843 | . 15 . 46 6 14 3 77 53 22 23 18 10 15 . 5 56 77 15 3 37 9 48 14 25 14 11 11 14 . 30 75 46 31 20 Route ------- -11/Scrapyard -10/Materials (discovered 3 exits: *Mat x2 / *Min) -10/Mines -9/Materials (discovered 5 exits: *Mat x3 / *Min x2) -9/Mines (discovered 2 exits: *Mat / *Exi) -9/Exiles (discovered 2 exits: [*Min x2]) -8/Mines -8/Materials (discovered 5 exits: *Fac x3 / *Sto / Gar) -8/Garrison -8/Materials (discovered 3 exits: *Fac / *Sto / Gar) -8/Garrison (discovered 3 exits: *Fac x3) -7/Factory (discovered 4 exits: *Fac / *Low x2 / Gar) -7/Garrison (discovered 3 exits: *Fac x3) -7/Factory (discovered 3 exits: *Low x2 / Gar) -7/Garrison -6/Factory -6/Extension (discovered 3 exits: *Fac x2 / *Cet) -6/Cetus (discovered 3 exits: *Fac x2 / *Arc) -6/Archives (discovered 3 exits: *Fac / *Hub x2) -6/Hub_04(d) (discovered 4 exits: *Fac x3 / Gar) -6/Garrison -5/Factory (discovered 4 exits: *Fac / Upp x2 / Gar) -5/Garrison -4/Factory (discovered 4 exits: *Res / Upp x2 / Gar) -4/Garrison (discovered 3 exits: *Fac x3) -4/Factory (discovered 2 exits: *Upp / Gar) -4/Garrison (discovered 3 exits: *Res x3) -3/Research (discovered 3 exits: *Arm / Tes x2) -3/Armory (discovered 3 exits: Res x2 / *Lab) -3/Lab -2/Research (discovered 6 exits: Acc x3 / Qua x2 / Gar) -2/Garrison (discovered 3 exits: *Res x3) -2/Research (discovered 3 exits: *Acc x2 / *Qua) -2/Quarantine (discovered 2 exits: *Acc / *Sec) -2/Section 7 (discovered 1 exit: Acc) History --------- Turn | Location | Event 4 | -11/Scrapyard | Upgraded with Propulsion slot (x1) 4 | -11/Scrapyard | Upgraded with Utility slot (x1) 4 | -11/Scrapyard | Upgraded with Weapon slot (x1) 11 | -11/Scrapyard | Discovered new exit (range 17) 76 | -11/Scrapyard | Entered Materials 229 | -10/Materials | Discovered new exit (range 6) 310 | -10/Materials | Build established: Mutant 369 | -10/Materials | Central database locked down 416 | -10/Materials | Discovered new exit (range 13) 506 | -10/Materials | Reached level 2 515 | -10/Materials | Upgraded with Utility slot (x1) 569 | -10/Materials | Discovered new exit (range 12) 625 | -10/Materials | Identified exit to Mines 648 | -10/Materials | Entered Mines 656 | -10/Mines | Learned location of 1 exit from Materials 672 | -10/Mines | Received a Rocket Launcher from a helpful Derelict 705 | -10/Mines | Identified exit to Materials 735 | -10/Mines | Entered Materials 736 | -9/Materials | Identified exit to Mines 737 | -9/Materials | Reached level 3 737 | -9/Materials | Upgraded with Utility slot (x1) 737 | -9/Materials | Upgraded with Weapon slot (x1) 852 | -9/Materials | Reached level 4 863 | -9/Materials | Upgraded with Utility slot (x1) 1005 | -9/Materials | Discovered new exit (range 5) 1017 | -9/Materials | Identified exit to Materials 1062 | -9/Materials | Build established: Hacker-Gunner 1075 | -9/Materials | Reached level 5 1077 | -9/Materials | Upgraded with Propulsion slot (x1) 1158 | -9/Materials | Discovered exit to Mines (range 14) 1245 | -9/Materials | Central database locked down 1326 | -9/Materials | Discovered exit to Materials (range 15) 1363 | -9/Materials | Discovered exit to Materials (range 22) 1396 | -9/Materials | Build established: Scavenger-Gunner 1514 | -9/Materials | Reached level 6 1741 | -9/Materials | Build established: Hacker-Gunner 1909 | -9/Materials | Entered Mines 1911 | -9/Mines | Reached level 7 1930 | -9/Mines | Discovered exit to Materials (range 16) 2080 | -9/Mines | Excavation squad dispatched 2080 | -9/Mines | A large section of the Mines collapsed 2131 | -9/Mines | Deemed a non-threat by the Exiles lab entrance 2132 | -9/Mines | Discovered new exit (range 5) 2135 | -9/Mines | Entered Exiles 2145 | -9/Exiles | Discovered new exit (range 15) 2155 | -9/Exiles | Met 8R-AWN 2231 | -9/Exiles | Met EX-HEX 2240 | -9/Exiles | Build established: Gunner 2277 | -9/Exiles | Met EX-BIN 2301 | -9/Exiles | Aligned with FarCom system 2303 | -9/Exiles | Given EX-Vault access code 2344 | -9/Exiles | Opened EX-Vault 2384 | -9/Exiles | Warned to stay clear of 0b10 Research branches 2449 | -9/Exiles | Met EX-DEC 2508 | -9/Exiles | Visited The Gauntlet 2807 | -9/Exiles | Attacked by the Exiles 2851 | -9/Exiles | Core integrity fell below 50% 2860 | -9/Exiles | Destroyed 8R-AWN 2878 | -9/Exiles | Found Prototype Ballistic Gun 2878 | -9/Exiles | Identified 8R-AWN's Boregun 2886 | -9/Exiles | Found Prototype Processor 2886 | -9/Exiles | Identified Exp. Targeting Computer 3009 | -9/Exiles | Upgraded with Propulsion slot (x1) 3197 | -9/Exiles | Destroyed EX-DEC 3216 | -9/Exiles | Destroyed EX-BIN 3251 | -9/Exiles | Found Prototype Device 3251 | -9/Exiles | Identified System Purifier 3290 | -9/Exiles | Destroyed EX-HEX 3329 | -9/Exiles | Upgraded with Power slot (x1) 3535 | -9/Exiles | Build established: Scavenger-Mutant 3554 | -9/Exiles | Found Flying Fortress v7 3560 | -9/Exiles | Found 0b10 Alert Chip 3563 | -9/Exiles | Found AWS/Autocannon 3700 | -9/Exiles | Discovered new exit (range 10) 3712 | -9/Exiles | Stole three prototypes: AWS/Autocannon, 0b10 Alert Chip, Flying Fortress v7 3712 | -9/Exiles | Entered Mines 3714 | -8/Mines | Reached level 8 3721 | -8/Mines | 99-TNT came to Exiles' defense 3721 | -8/Mines | Core integrity fell below 20% 3933 | -8/Mines | Discovered exit to Materials (range 8) 4054 | -8/Mines | Entered Materials 4055 | -8/Materials | Core integrity fell below 50% 4055 | -8/Materials | Core integrity fell below 20% 4056 | -8/Materials | Reached level 9 4056 | -8/Materials | Upgraded with Utility slot (x1) 4188 | -8/Materials | Repaired Broken Hvy. Deuterium Engine? 4305 | -8/Materials | Reached level 10 4339 | -8/Materials | Discovered new exit (range 16) 4415 | -8/Materials | Reached level 11 4466 | -8/Materials | Upgraded with Utility slot (x1) 4481 | -8/Materials | Destroyed 12 combat bots 4487 | -8/Materials | Build established: Scavenger-Scout 4525 | -8/Materials | Repaired Shield Generator 4579 | -8/Materials | Repaired Cld. Ion Engine 4650 | -8/Materials | Identified exit to Storage 4674 | -8/Materials | Discovered new exit (range 7) 4815 | -8/Materials | Reached level 12 4833 | -8/Materials | Upgraded with Utility slot (x1) 4847 | -8/Materials | Central database locked down 4903 | -8/Materials | Destroyed 7 combat bots 5015 | -8/Materials | Discovered new exit (range 3) 5017 | -8/Materials | Identified exit to Factory 5076 | -8/Materials | Garrison activated, responded to threat 5105 | -8/Materials | Identified exit to Garrison 5106 | -8/Materials | Entered Garrison 5108 | -8/Garrison | Reached level 13 5138 | -8/Garrison | Spotted B-75 Beast 5138 | -8/Garrison | Spotted B-75 Beast 5166 | -8/Garrison | Garrison Relay disabled 5187 | -8/Garrison | Triggered checkpoint 5212 | -8/Garrison | Build established: Scavenger-Mutant 5283 | -8/Garrison | Destroyed B-75 Beast 5356 | -8/Garrison | Destroyed B-75 Beast 5520 | -8/Garrison | Triggered checkpoint 5521 | -8/Garrison | Garrison Relay disabled 5586 | -8/Garrison | Triggered checkpoint 5590 | -8/Garrison | Triggered checkpoint 5594 | -8/Garrison | Destroyed 7 combat bots 5632 | -8/Garrison | Garrison Relay disabled 5650 | -8/Garrison | Triggered checkpoint 5701 | -8/Garrison | Discovered new exit (range 16) 5715 | -8/Garrison | Identified exit to Materials 5718 | -8/Garrison | Installed Relay Interface Framework 5757 | -8/Garrison | Entered Materials 5841 | -8/Materials | Reached level 14 5844 | -8/Materials | Upgraded with Utility slot (x1) 6095 | -8/Materials | Found Powered Armor 6097 | -8/Materials | Found Powered Armor 6128 | -8/Materials | Discovered exit to Storage (range 13) 6222 | -8/Materials | Discovered exit to Factory (range 14) 6327 | -8/Materials | Garrison activated, responded to threat 6340 | -8/Materials | Identified exit to Garrison 6342 | -8/Materials | Entered Garrison 6458 | -8/Garrison | Triggered checkpoint 6468 | -8/Garrison | Triggered checkpoint 6738 | -8/Garrison | Triggered checkpoint 6766 | -8/Garrison | Triggered checkpoint 6768 | -8/Garrison | Triggered checkpoint 6768 | -8/Garrison | Discovered exit to Factory (range 17) 6892 | -8/Garrison | Garrison Relay disabled 6939 | -8/Garrison | Discovered exit to Factory (range 11) 6962 | -8/Garrison | Triggered checkpoint 7003 | -8/Garrison | Garrison Relay disabled 7032 | -8/Garrison | Triggered checkpoint 7081 | -8/Garrison | Discovered exit to Factory (range 15) 7095 | -8/Garrison | Expanded RIF knowledge: Robot Detection 7118 | -8/Garrison | Entered Factory 7118 | -7/Factory | Accompanied by 3 allies 7119 | -7/Factory | Identified exit to Lower Caves 7120 | -7/Factory | Reached level 15 7188 | -7/Factory | Fabricated O-16 Technician (x1) 7344 | -7/Factory | Discovered exit to Lower Caves (range 18) 7370 | -7/Factory | Reached level 16 7378 | -7/Factory | Upgraded with Utility slot (x1) 7590 | -7/Factory | Discovered new exit (range 12) 7630 | -7/Factory | Identified exit to Factory 7694 | -7/Factory | Identified exit to Garrison 7695 | -7/Factory | Entered Garrison 7714 | -7/Garrison | Triggered checkpoint 7802 | -7/Garrison | Triggered checkpoint 7835 | -7/Garrison | Destroyed 8 combat bots 7847 | -7/Garrison | Discovered new exit (range 12) 7864 | -7/Garrison | Triggered checkpoint 7900 | -7/Garrison | Triggered checkpoint 7906 | -7/Garrison | Discovered new exit (range 18) 7977 | -7/Garrison | Discovered new exit (range 18) 7993 | -7/Garrison | Identified exit to Factory 7997 | -7/Garrison | Expanded RIF knowledge: Program Shield 7997 | -7/Garrison | Reached level 17 7999 | -7/Garrison | Entered Factory 8048 | -7/Factory | Discovered exit to Lower Caves (range 8) 8146 | -7/Factory | Identified exit to Garrison 8153 | -7/Factory | Discovered exit to Lower Caves (range 17) 8182 | -7/Factory | Entered Garrison 8220 | -7/Garrison | Discovered exit to Factory (range 15) 8229 | -7/Garrison | Expanded RIF knowledge: Patrol Navigation 8232 | -7/Garrison | Entered Factory 8290 | -6/Factory | Reached level 18 8352 | -6/Factory | Discovered new exit (range 17) 8417 | -6/Factory | Identified exit to Extension 8418 | -6/Factory | Entered Extension 8465 | -6/Extension | Rescued a captive Derelict 8468 | -6/Extension | Rescued a captive Derelict 8495 | -6/Extension | Rescued a captive Derelict 8496 | -6/Extension | Rescued a captive Derelict 8588 | -6/Extension | Rescued A7 8614 | -6/Extension | Rescued a captive Derelict 8616 | -6/Extension | Rescued a captive Derelict 8617 | -6/Extension | Spotted B-75 Beast 8620 | -6/Extension | Spotted B-75 Beast 8645 | -6/Extension | Allies destroyed B-75 Beast 8707 | -6/Extension | Discovered new exit (range 5) 8710 | -6/Extension | Identified exit to Factory 8768 | -6/Extension | First assault squad dispatched 8784 | -6/Extension | Reached level 19 8785 | -6/Extension | Upgraded with Utility slot (x1) 8861 | -6/Extension | Identified exit to Cetus 8974 | -6/Extension | Extracted ID and sensor layout for unrecognized location from A7's data core 8980 | -6/Extension | Build established: Scavenger-Scout 9174 | -6/Extension | Rescued a captive Derelict 9178 | -6/Extension | Rescued a captive Derelict 9259 | -6/Extension | Rescued a captive Derelict 9274 | -6/Extension | Discovered exit to Factory (range 10) 9309 | -6/Extension | Disrupted transfer network 9338 | -6/Extension | Entered Cetus 9338 | -6/Cetus | Accompanied by 9 allies 9347 | -6/Cetus | Spotted Cetus Guard 9347 | -6/Cetus | Spotted Cetus Guard 9357 | -6/Cetus | Spotted Cetus Guard 9357 | -6/Cetus | Spotted Cetus Guard 9363 | -6/Cetus | Destroyed Cetus Guard 9368 | -6/Cetus | Destroyed Cetus Guard 9371 | -6/Cetus | Destroyed Cetus Guard 9412 | -6/Cetus | Reached level 20 9412 | -6/Cetus | Destroyed Cetus Guard 9442 | -6/Cetus | Upgraded with Weapon slot (x1) 9505 | -6/Cetus | Discovered new exit (range 17) 9639 | -6/Cetus | Found a strange terminal 9720 | -6/Cetus | Cetus Manufacturing Module disabled 9827 | -6/Cetus | Spotted Cetus Guard 9828 | -6/Cetus | Spotted Cetus Guard 9830 | -6/Cetus | Spotted Cetus Guard 9832 | -6/Cetus | Spotted Cetus Guard 9834 | -6/Cetus | Discovered exit to Factory (range 20) 9841 | -6/Cetus | Destroyed Cetus Guard 9844 | -6/Cetus | Destroyed Cetus Guard 9863 | -6/Cetus | Destroyed Cetus Guard 9867 | -6/Cetus | Destroyed Cetus Guard 9881 | -6/Cetus | Met Revision 17 10196 | -6/Cetus | Discovered exit to Factory (range 20) 10273 | -6/Cetus | Identified exit to Archives 10274 | -6/Cetus | Entered Archives 10435 | -6/Archives | Unable to access archive contents 10437 | -6/Archives | Discovered new exit (range 16) 10440 | -6/Archives | Unable to access archive contents 10441 | -6/Archives | Discovered new exit (range 17) 10446 | -6/Archives | Unable to access archive contents 10447 | -6/Archives | Discovered exit to Factory (range 17) 10451 | -6/Archives | Unable to access archive contents 10469 | -6/Archives | Identified exit to Hub_04(d) 10574 | -6/Archives | Entered Hub_04(d) 10686 | -6/Hub_04(d) | Central database locked down 10739 | -6/Hub_04(d) | Discovered exit to Factory (range 12) 10746 | -6/Hub_04(d) | Reached level 21 10774 | -6/Hub_04(d) | Discovered exit to Factory (range 16) 10780 | -6/Hub_04(d) | Network Hub disabled 10794 | -6/Hub_04(d) | Network Hub disabled 10801 | -6/Hub_04(d) | Discovered exit to Factory (range 13) 10814 | -6/Hub_04(d) | Identified exit to Garrison 10821 | -6/Hub_04(d) | Network Hub disabled 10823 | -6/Hub_04(d) | Garrison activated, responded to threat 10833 | -6/Hub_04(d) | Entered Garrison 10836 | -6/Garrison | Expanded RIF knowledge: Autoassimilate 10854 | -6/Garrison | Triggered checkpoint 10918 | -6/Garrison | Garrison Relay disabled 11103 | -6/Garrison | Discovered exit to Factory (range 15) 11104 | -6/Garrison | Triggered checkpoint 11126 | -6/Garrison | Entered Factory 11128 | -5/Factory | Reached level 22 11234 | -5/Factory | Spotted B-75 Beast 11253 | -5/Factory | Identified exit to Upper Caves 11318 | -5/Factory | Destroyed B-75 Beast 11363 | -5/Factory | Fabricated Imp. Overload Amplifier (x2) 11384 | -5/Factory | Identified exit to Garrison 11399 | -5/Factory | Discovered new exit (range 10) 11404 | -5/Factory | Identified exit to Factory 11423 | -5/Factory | Entered Garrison 11426 | -5/Garrison | Expanded RIF knowledge: Alert ID Control 11440 | -5/Garrison | Triggered checkpoint 11496 | -5/Garrison | Garrison Relay disabled 11512 | -5/Garrison | Spotted B-75 Beast 11520 | -5/Garrison | Triggered checkpoint 11562 | -5/Garrison | Discovered exit to Factory (range 15) 11582 | -5/Garrison | Destroyed 8 combat bots 11595 | -5/Garrison | Destroyed B-75 Beast 11630 | -5/Garrison | Triggered checkpoint 11686 | -5/Garrison | Garrison Relay disabled 11714 | -5/Garrison | Entered Factory 11716 | -4/Factory | Reached level 23 11742 | -4/Factory | Identified exit to Upper Caves 11794 | -4/Factory | Discovered new exit (range 17) 11895 | -4/Factory | Reached level 24 11998 | -4/Factory | Fabricated Enh. Nova Cannon? 12057 | -4/Factory | Fabricated Adv. Shield Generator? 12105 | -4/Factory | Repaired Powered Armor 12119 | -4/Factory | Identified exit to Garrison 12247 | -4/Factory | Entered Garrison 12247 | -4/Garrison | Accompanied by 4 allies 12308 | -4/Garrison | Triggered checkpoint 12408 | -4/Garrison | Discovered new exit (range 13) 12415 | -4/Garrison | Identified exit to Factory 12448 | -4/Garrison | Triggered checkpoint 12458 | -4/Garrison | Reached level 25 12463 | -4/Garrison | Upgraded with Utility slot (x1) 12485 | -4/Garrison | Discovered exit to Factory (range 18) 12648 | -4/Garrison | Triggered checkpoint 12722 | -4/Garrison | Discovered exit to Factory (range 17) 12736 | -4/Garrison | Expanded RIF knowledge: Autoassimilate 12770 | -4/Garrison | Triggered checkpoint 12793 | -4/Garrison | Garrison Relay disabled 12840 | -4/Garrison | Entered Factory 12840 | -4/Factory | Accompanied by 3 allies 13090 | -4/Factory | First assault squad dispatched 13150 | -4/Factory | Fabricated O-16 Technician? 13234 | -4/Factory | Spotted B-86 Titan 13244 | -4/Factory | Discovered exit to Upper Caves (range 16) 13263 | -4/Factory | Identified exit to Garrison 13263 | -4/Factory | Entered Garrison 13263 | -4/Garrison | Accompanied by 1 ally 13288 | -4/Garrison | Garrison Relay disabled 13294 | -4/Garrison | Triggered checkpoint 13340 | -4/Garrison | Spotted B-86 Titan 13343 | -4/Garrison | Triggered checkpoint 13344 | -4/Garrison | Triggered checkpoint 13354 | -4/Garrison | Discovered new exit (range 10) 13368 | -4/Garrison | Triggered checkpoint 13392 | -4/Garrison | Core integrity fell below 50% 13396 | -4/Garrison | Reached level 26 13414 | -4/Garrison | Upgraded with Utility slot (x1) 13426 | -4/Garrison | Core integrity fell below 20% 13459 | -4/Garrison | Destroyed 20 combat bots 13515 | -4/Garrison | Destroyed B-86 Titan 13519 | -4/Garrison | Found Hvy. Reflective Plating 13570 | -4/Garrison | Triggered checkpoint 13615 | -4/Garrison | Discovered new exit (range 12) 13627 | -4/Garrison | Identified exit to Research 13651 | -4/Garrison | Garrison Relay disabled 13664 | -4/Garrison | Triggered checkpoint 13734 | -4/Garrison | Discovered exit to Research (range 13) 13743 | -4/Garrison | Expanded RIF knowledge: Crosswire 13745 | -4/Garrison | Entered Research 13746 | -3/Research | Core integrity fell below 50% 13747 | -3/Research | Reached level 27 13785 | -3/Research | Repaired Broken Adv. Shield Generator 13801 | -3/Research | Spotted B-86 Titan 13821 | -3/Research | Found Prototype Processor 13821 | -3/Research | Identified Exp. Melee Analysis Suite 13925 | -3/Research | Spotted B-86 Titan 13948 | -3/Research | Spotted B-86 Titan 13958 | -3/Research | Found Exp. Signal Interpreter 13979 | -3/Research | Build established: Bothacker-Scout 13983 | -3/Research | Identified exit to Armory 13983 | -3/Research | Identified exit to Testing 13996 | -3/Research | Upgraded with Weapon slot (x1) 13996 | -3/Research | Found Centrium Greatsword 14044 | -3/Research | Core integrity fell below 20% 14092 | -3/Research | Entered Armory 14094 | -3/Armory | Reached level 28 14336 | -3/Armory | Spotted B-86 Titan 14409 | -3/Armory | Discovered new exit (range 12) 14724 | -3/Armory | Discovered new exit (range 16) 14748 | -3/Armory | Discovered new exit (range 16) 14825 | -3/Armory | Fabricated Centrium Medium Armor Plating (x1) 14842 | -3/Armory | Identified exit to Lab 14843 | -3/Armory | Entered Lab 14843 | -3/Lab | Discovered new exit (range 9) 14845 | -3/Lab | Reached level 29 14847 | -3/Lab | Identified exit to Research 14849 | -3/Lab | Hidden lab's door opened automatically 14849 | -3/Lab | Sensor layout match revealed 14850 | -3/Lab | Gained access to the hidden lab's interior 14850 | -3/Lab | Unable to decrypt terminal 14852 | -3/Lab | Unable to decrypt terminal 14866 | -3/Lab | Unable to decrypt terminal 14882 | -3/Lab | Found Prototype Special Weapon 14882 | -3/Lab | Identified Gui. Remote Datajack 14891 | -3/Lab | Found Prototype Energy Gun 14891 | -3/Lab | Identified Tachyon Dispersion Ray 14898 | -3/Lab | Found Prototype Protection 14898 | -3/Lab | Identified Exp. Powered Armor 14901 | -3/Lab | Found Prototype Hackware 14901 | -3/Lab | Identified Quantum Router 14913 | -3/Lab | Found Alien Artifact 14913 | -3/Lab | Identified Core Regenerator 14913 | -3/Lab | Used Core Regenerator, restored core integrity (+412) 14920 | -3/Lab | Found Alien Artifact 14920 | -3/Lab | Identified Integrated Dissipator 14920 | -3/Lab | Installed Integrated Dissipator, increased core heat dissipation (+2%) 14927 | -3/Lab | Found Alien Artifact 14927 | -3/Lab | Identified Transdimensional Reconstructor 14927 | -3/Lab | Warped through subspace 14990 | -3/Lab | Entered Research 14992 | -2/Research | Reached level 30 15090 | -2/Research | Identified exit to Access 15109 | -2/Research | Found Prototype Processor 15110 | -2/Research | Identified Exp. Core Analyzer 15170 | -2/Research | Identified exit to Quarantine 15208 | -2/Research | Build established: Hacker-Scout 15783 | -2/Research | Reached level 31 15867 | -2/Research | Spotted B-90 Cyclops 15902 | -2/Research | Identified exit to Garrison 15914 | -2/Research | Entered Garrison 15914 | -2/Garrison | Accompanied by 4 allies 15948 | -2/Garrison | Triggered checkpoint 16048 | -2/Garrison | Triggered checkpoint 16196 | -2/Garrison | Spotted B-90 Cyclops 16234 | -2/Garrison | Destroyed B-90 Cyclops 16427 | -2/Garrison | Discovered new exit (range 13) 16437 | -2/Garrison | Identified exit to Research 16459 | -2/Garrison | Phase Generator disabled 16515 | -2/Garrison | Garrison Relay disabled 16524 | -2/Garrison | Triggered checkpoint 16540 | -2/Garrison | Triggered checkpoint 16554 | -2/Garrison | Triggered checkpoint 16588 | -2/Garrison | Triggered checkpoint 16600 | -2/Garrison | Discovered exit to Research (range 15) 16658 | -2/Garrison | Triggered checkpoint 16665 | -2/Garrison | Garrison Relay disabled 16776 | -2/Garrison | Garrison Relay disabled 16776 | -2/Garrison | Reached level 32 16781 | -2/Garrison | Upgraded with Utility slot (x1) 16821 | -2/Garrison | Build established: Botlord-Scout 16830 | -2/Garrison | Discovered exit to Research (range 16) 16840 | -2/Garrison | Expanded RIF knowledge: Coupler Efficiency 16861 | -2/Garrison | Entered Research 16861 | -2/Research | Accompanied by 1 ally 17051 | -2/Research | Spotted B-90 Cyclops 17068 | -2/Research | Found Prototype Device 17069 | -2/Research | Identified EM Disruption Field 17100 | -2/Research | Allies destroyed B-90 Cyclops 17111 | -2/Research | First assault squad dispatched 17206 | -2/Research | Discovered exit to Access (range 17) 17408 | -2/Research | Discovered exit to Access (range 16) 17536 | -2/Research | Destroyed 10 combat bots 17769 | -2/Research | Discovered exit to Quarantine (range 8) 17769 | -2/Research | Central database locked down 17772 | -2/Research | Entered Quarantine 17786 | -2/Quarantine | Cryocooling Duct disabled 17790 | -2/Quarantine | Cryocooling Duct disabled 17801 | -2/Quarantine | Ambient heat levels rising (+20) 17801 | -2/Quarantine | Non-combat units ordered to evacuate 17805 | -2/Quarantine | Ambient heat levels rising (+20) 17805 | -2/Quarantine | Combat units ordered to evacuate 17825 | -2/Quarantine | Found Prototype Processor 17875 | -2/Quarantine | Found Prototype Device 17905 | -2/Quarantine | Quarantine Guard activated 17924 | -2/Quarantine | Found Alien Slashing Weapon 17924 | -2/Quarantine | Identified Sigix Broadsword 17942 | -2/Quarantine | Identified Spectral Analyzer 17942 | -2/Quarantine | Identified Exp. Thermal Shield 17973 | -2/Quarantine | Found Prototype Device 17973 | -2/Quarantine | Identified Exp. Shock Absorption System 18065 | -2/Quarantine | Spotted Quarantine Guard 18066 | -2/Quarantine | Destroyed Quarantine Guard 18137 | -2/Quarantine | Spotted Quarantine Guard 18152 | -2/Quarantine | Spotted Quarantine Guard 18154 | -2/Quarantine | Destroyed Quarantine Guard 18173 | -2/Quarantine | Found Alien Artifact 18197 | -2/Quarantine | Identified Matter Drive 18313 | -2/Quarantine | Spotted Quarantine Guard 18331 | -2/Quarantine | Destroyed Quarantine Guard 18396 | -2/Quarantine | Spotted Quarantine Guard 18401 | -2/Quarantine | Spotted Quarantine Guard 18403 | -2/Quarantine | Spotted Quarantine Guard 18428 | -2/Quarantine | Reached level 33 18428 | -2/Quarantine | Destroyed Quarantine Guard 18441 | -2/Quarantine | Destroyed Quarantine Guard 18444 | -2/Quarantine | Spotted Quarantine Guard 18445 | -2/Quarantine | Destroyed Quarantine Guard 18468 | -2/Quarantine | Destroyed Quarantine Guard 18496 | -2/Quarantine | Found Alien Artifact 18498 | -2/Quarantine | Identified Dimensional Node Initializer 18498 | -2/Quarantine | Initialized slip node 18501 | -2/Quarantine | Found Transdimensional Reconstructor 18535 | -2/Quarantine | Spotted Quarantine Guard 18544 | -2/Quarantine | Destroyed Quarantine Guard 18640 | -2/Quarantine | Found Alien Impact Weapon 18640 | -2/Quarantine | Identified Core Stripper 18675 | -2/Quarantine | Found Alien Energy Cannon 18675 | -2/Quarantine | Identified Core Cannon 18706 | -2/Quarantine | Found Alien Artifact 18729 | -2/Quarantine | Found Alien Artifact 18835 | -2/Quarantine | Identified Subatomic Replicator 18835 | -2/Quarantine | Identified Stasis Generator 18849 | -2/Quarantine | Found Alien Artifact 18913 | -2/Quarantine | Identified Core Reset Matrix 18965 | -2/Quarantine | Spotted Fortress 18983 | -2/Quarantine | Destroyed Fortress 18998 | -2/Quarantine | Found Exp. Force Field 19004 | -2/Quarantine | Found Prototype Device 19004 | -2/Quarantine | Identified Thermal Barrier 19018 | -2/Quarantine | Found Prototype Device 19018 | -2/Quarantine | Identified EM Dispersion Field 19022 | -2/Quarantine | Found Vortex Chain Reactor 19151 | -2/Quarantine | Spotted Quarantine Guard 19151 | -2/Quarantine | Destroyed Quarantine Guard 19328 | -2/Quarantine | Repaired Broken EM Dispersion Field 19405 | -2/Quarantine | Discovered new exit (range 5) 19410 | -2/Quarantine | Spotted Quarantine Guard 19419 | -2/Quarantine | Destroyed Quarantine Guard 19425 | -2/Quarantine | Identified exit to Section 7 19425 | -2/Quarantine | Entered Section 7 19448 | -2/Section 7 | Spotted S7 Guard 19515 | -2/Section 7 | Destroyed S7 Guard 19537 | -2/Section 7 | Found Prototype Protection 19552 | -2/Section 7 | Identified Hvy. Regenerative Plating 19565 | -2/Section 7 | Found Alien Artifact 19565 | -2/Section 7 | Identified Core Membrane 19565 | -2/Section 7 | Installed Core Membrane, gained immunity to corruption 19648 | -2/Section 7 | Spotted S7 Guard 19672 | -2/Section 7 | Found Alien Artifact 19672 | -2/Section 7 | Identified Integrity Redistributor 19672 | -2/Section 7 | Used Integrity Redistributor, redistributed integrity from core (-26) 19743 | -2/Section 7 | Destroyed S7 Guard 19772 | -2/Section 7 | Found Alien Artifact 19773 | -2/Section 7 | Identified Integrated Singularity Reactor 19773 | -2/Section 7 | Installed Integrated Singularity Reactor, increased core energy generation (+2%) 19934 | -2/Section 7 | Found Integrated Dissipator 19934 | -2/Section 7 | Installed Integrated Dissipator, increased core heat dissipation (+2%) 20241 | -2/Section 7 | Discovered exit to Access (range 20) 20257 | -2/Section 7 | Scanned by Researcher 20258 | -2/Section 7 | Intercept squad dispatched 20266 | -2/Section 7 | Spotted Tracker 20266 | -2/Section 7 | Spotted Tracker 20271 | -2/Section 7 | Spotted Combat Programmer 20271 | -2/Section 7 | Spotted Combat Programmer 20288 | -2/Section 7 | Core integrity fell below 50% 20304 | -2/Section 7 | Destroyed Tracker 20310 | -2/Section 7 | Destroyed Tracker 20329 | -2/Section 7 | Core integrity fell below 20% 20370 | -2/Section 7 | Destroyed Combat Programmer 20382 | -2/Section 7 | Destroyed Combat Programmer 20383 | -2/Section 7 | Destroyed by H-88 Terminator with KE Penetrator Last Messages --------------- 20368_ K-01 Serf collects debris. 20370_ Penetrated by Slug. 20370_ Combat Programmer suffers critical hit. 20370_ Combat Programmer fries systems beyond repair. 20370_ Combat Programmer destroyed. 20370_ K-01 Serf collects debris. 20371_ Penetrated by EMDS Slug. 20371_ K-01 Serf collects debris. 20373_ Slug penetrates Wall. 20374_ Combat Programmer suffers critical hit. 20374_ K-01 Serf collects debris. 20375_ EMDS Slug penetrates Wall. 20376_ K-01 Serf collects debris. 20376_ Slug penetrates Wall. 20378_ K-01 Serf collects debris. 20379_ Slug penetrates Wall. 20381_ K-01 Serf collects debris. 20382_ Combat Programmer fries systems beyond repair. 20382_ Combat Programmer destroyed. 20383_ Slug penetrates Wall. Map ----- +----------------------------------------------------+ | ##/####+#####+########################?####? ????? | | # ####################" ""?????? | | # ] """"" ####* ############" ?????? | | # ""T"" #### ! ############" ?????? | | # ####= ############""""?????? | | ##############=*! ############""""?? ??? | | " " + k [!+%!!!############""""?????? | | "" " #########k [#%!!!############""""" ???? | | """" ######### # %!=*###########" ????? | | ######### #] !=############""""?????? | | ############Y###### # [[############"""""????? | | # ###### ####################??????? | | # """ """ ######w #####################?????? | | # " " " " ###### #####################??#??? | | # """ """ ###### #####################?????? | | # ###### ####################??????? | | # """ ###### ####################??????? | | # " " ""######A ####################??????? | | # """ ""###### #####################?#???? | | ? ? T"###### #####################?????? | | #??? ""###### #[! ################??#??? | | #??? ""######w== #*!k!" ############??#???? | | ? ? ######%%%|#!*[%% "#############?????? | | ??##?+#############!|!=#=k!![ #############?#???? | | ???? o%!*h!*%**[!%! #########?###?#???? | | ???? ##########=@!!! ##############??#?? | | ????? ##########[![%#################????? | | ????? ? ##########[*=!#########?##?###?????? | | ?????< ###?+############!!!]#####?##########?????? | | ????? # ? ###############?####?#?????? | | ????? # """?" ###########??#?#######?????? | | ?????### ""?"" ##?##############?#####?#??? | | ??????## "?""" ?? #?#########?####?####?#????? | | ??????# ? ##########?#########??##???? | | ???????# ? #######?#?###?######?#?????? | | ???????##############?############?#?#####?#?????? | | | | | | | | | | | | | | | | | | | | | | | | | | | | | +----------------------------------------------------+ Best States ------------- Heat Dissipation 119 Energy Generation 75 Energy Capacity 700 Matter Stores 350 Matter Capacity 750 Sight Range 17 Robot Scan Range 16 Terrain Scan Range 20 Terrain Scan Density 310 Power Amplification 30 Armor Coverage 1025 Resistance: TH 25 Resistance: EX 5 Resistance: EM 75 Weapon Cycling 15 Evasion (%) 74 Targeting Accuracy 18 Melee Accuracy 12 Target Analysis 8 Armor Integrity Analysis 66 Recoil Reduction 3 Offensive Hacking 24 Defensive Hacking 35 Item Schematics ----------------- Hacking Suite | -9/Materials | Scanalyzed Imp. Hover Unit | -9/Materials | Scanalyzed Hover Unit | -9/Materials | Scanalyzed Shield Generator | -9/Mines | Hacked Exp. Heat Sink | -8/Materials | Scanalyzed System Purifier | -8/Materials | Scanalyzed Imp. Light Armor Plating | -8/Materials | Scanalyzed Adv. Terrain Scanner | -8/Materials | Scanalyzed Imp. Salvage Targeting Computer | -8/Materials | Scanalyzed Lyr. Medium Armor Plating | -8/Materials | Scanalyzed Imp. Shield Generator | -8/Materials | Scanalyzed Imp. Remote Datajack | -7/Factory | Hacked Matter Neutralizer | -6/Extension | Hacked Impulse Thruster | -6/Extension | Hacked Cmb. Gravmag System | -6/Extension | Hacked Lgt. Angular Momentum Engine | -6/Hub_04(d) | Hacked Imp. Integration Mediator | -6/Hub_04(d) | Hacked KE Penetrator | -6/Hub_04(d) | Hacked Gravmag Array | -6/Hub_04(d) | Hacked Adv. Shield Generator | -4/Factory | Hacked Cmb. Linear Gravjet | -4/Factory | Hacked Centrium Medium Armor Plating | -4/Factory | Scanalyzed Phasing Sabre | -4/Factory | Scanalyzed Enh. Nova Cannon | -4/Factory | Hacked Lgt. Quantum Reactor | -4/Factory | Hacked Imp. Force Field | -4/Factory | Hacked Remote Datajack | -3/Research | Scanalyzed Imp. Stasis Canceller | -3/Armory | Hacked Adv. Phase Shifter | -2/Research | Scanalyzed Quantum Reactor | -2/Research | Hacked Biometal Heavy Treads | -2/Research | Hacked Exp. Core Analyzer | -2/Research | Scanalyzed Cld. Linear Gravjet | -2/Research | Scanalyzed Adv. Power Amplifier | -2/Research | Scanalyzed Enh. Quantum Rifle | -2/Quarantine | Hacked Rnf. Quantum Reactor | -2/Section 7 | Hacked Centrium Leg | -2/Section 7 | Hacked Imp. Quantum Reactor | -2/Section 7 | Hacked EM Dispersion Field | -2/Section 7 | Scanalyzed Robot Schematics ------------------ O-16 Technician | -9/Mines | Hacked G-34 Mercenary | -9/Mines | Hacked S-10 Pest | -9/Mines | Hacked H-55 Commando | -7/Factory | Hacked O-32 Director | -2/Research | Hacked G-73 Enforcer | -2/Research | Hacked E-15 Imp | -2/Research | Hacked M-36 Artificer | -2/Quarantine | Hacked L-61 Swordsman | -2/Quarantine | Hacked Fabricated ------------ O-16 Technician | x1 | -7/Factory Imp. Overload Amplifier | x2 | -5/Factory | Preloaded Enh. Nova Cannon | x1 | -4/Factory Adv. Shield Generator | x2 | -4/Factory O-16 Technician | x1 | -4/Factory Centrium Medium Armor Plating | x1 | -3/Armory Alien Tech Used ----------------- Core Regenerator Integrated Dissipator Transdimensional Reconstructor Sigix Broadsword Dimensional Node Initializer Core Stripper Core Cannon Core Membrane Integrity Redistributor Integrated Singularity Reactor Achievements -------------- Sunderer Challenges ------------ None RPGLIKE | -11 -10 -10 -9 -9 -9 -8 -8 -8 -8 -8 -7 -7 -7 -7 -6 -6 -6 -6 -6 -6 -5 -5 -4 -4 -4 -4 -3 -3 -3 -2 -2 -2 -2 -2 --------- Run | Scr Mat Min Mat Min Exi Min Mat Gar Mat Gar Fac Gar Fac Gar Fac Ext Cet Arc Hub Gar Fac Gar Fac Gar Fac Gar Res Arm Lab Res Gar Res Qua Sec Levels Raised 32 | . 1 . 4 1 . 1 4 1 1 . 2 1 . . 1 1 1 . 1 . 1 . 2 1 . 1 1 1 1 2 1 . 1 . XP Earned 52270 | 3000 1760 500 6169 1355 350 1200 6485 1511 762 792 2220 972 234 81 1344 2455 1089 210 1071 287 830 1097 2326 1777 364 949 1955 921 1387 2891 1217 807 893 1009 XP Spent 50830 | 2990 800 . 6250 . 1600 1450 6130 . 3270 . 2900 . . . 900 3525 1100 . 1250 . . . . 3500 200 4615 1400 1590 1500 . 4100 425 1100 235 Upgrades 78 | 11 1 . 11 . 2 12 4 . 4 . 1 . . . 2 3 1 . 1 . . . . 1 1 7 1 9 1 . 1 2 1 1 Power Slot 1 | . . . . . 1 . . . . . . . . . . . . . . . . . . . . . . . . . . . . . Propulsion Slot 3 | 1 . . 1 . 1 . . . . . . . . . . . . . . . . . . . . . . . . . . . . . Utility Slot 13 | 1 1 . 2 . . . 3 . 1 . 1 . . . . 1 . . . . . . . 1 . 1 . . . . 1 . . . Weapon Slot 4 | 1 . . 1 . . . . . . . . . . . . . 1 . . . . . . . . . 1 . . . . . . . Core Integrity 22 | . . . . . . 10 . . . . . . . . . . . . . . . . . . . 5 . 6 . . . . . 1 Heat Dissipation 6 | . . . 1 . . . . . 1 . . . . . . . . . . . . . . . . 1 . 3 . . . . . . Matter Storage 1 | . . . . . . . . . 1 . . . . . . . . . . . . . . . . . . . . . . . . . Mass Support 3 | 1 . . . . . 1 . . . . . . . . . . . . . . . . . . . . . . . . . . 1 . Inventory Capacity 6 | 2 . . 2 . . . . . . . . . . . . . . . 1 . . . . . . . . . 1 . . . . . Sight Range 1 | 1 . . . . . . . . . . . . . . . . . . . . . . . . . . . . . . . . . . Sensor Range 8 | . . . 4 . . . . . . . . . . . . 2 . . . . . . . . . . . . . . . 2 . . Terrain Scan Density 3 | 2 . . . . . . 1 . . . . . . . . . . . . . . . . . . . . . . . . . . . Ranged Accuracy 1 | . . . . . . . . . 1 . . . . . . . . . . . . . . . . . . . . . . . . . Melee Accuracy 1 | . . . . . . . . . . . . . . . . . . . . . . . . . 1 . . . . . . . . . Hack Attack % 2 | 1 . . . . . . . . . . . . . . 1 . . . . . . . . . . . . . . . . . . . Hack Defense % 2 | 1 . . . . . . . . . . . . . . 1 . . . . . . . . . . . . . . . . . . . EX Resistance % 1 | . . . . . . 1 . . . . . . . . . . . . . . . . . . . . . . . . . . . . Protomatter Created 7360 | . 219 . 472 120 114 20 648 429 385 245 100 67 211 . 118 542 539 137 123 160 62 401 101 176 51 126 81 106 . 156 360 381 148 562 Integrity Restored 17030 | . 261 . 808 85 318 60 1641 1103 334 410 288 210 290 . 105 1096 1605 218 69 820 185 1021 303 415 231 249 243 318 . 681 1613 950 686 414 Core 12625 | . 203 . 597 62 318 60 1513 757 220 276 220 145 195 . 67 660 990 91 69 602 185 533 303 168 231 249 243 318 . 681 1330 474 621 244 Parts 4405 | . 58 . 211 23 . . 128 346 114 134 68 65 95 . 38 436 615 127 . 218 . 488 . 247 . . . . . . 283 476 65 170 Protomatter Decayed 3184 | . 127 . 191 65 5 . 57 9 268 62 110 17 64 . 81 519 337 60 . . . 52 . 320 90 177 . . . 134 99 138 29 173 Game ------ Seed CompositeAntigravStorage Manual? 0 Play Time 06:35:17 Cumulative 141.4 hours Start 2020.07.31 @ 15:48:46 End 2020.07.31 @ 23:41:06 Sessions 1 Manual Loads 0 Difficulty Rogue Special Mode Winter2019/RPGLIKE Game No. 56 Rogue 56 Adventurer 0 Explorer 0 Win Type - Total 2 Types 1/0/0/1/0/0/0 Lore% 76 Gallery% 68 Achievement% 64 Wizard Run 0 Options --------- ASCII 0 Keyboard 0 Movement Numpad Keybinds 0 Fullscreen 1 Font 14/SmallcapsGlow Map View 84x54 Tactical HUD 1 Map Filters NONE Filters NONE Steam 1 RUN: 7465a2cc-523d-413d-9804-6dbbbf684ce2